Workbook

Sheet Ajánlati tábla
C1: Biztosítási díjkalkulátor 2021/2022. mezőgazdasági termelési időszakra (ver.: 2021.09.08) | K1: Államilag díjtámogatott "A" típusú összkockázatú biztosítás (+jég és vihar önrész biztosítás) (várható támogatás akár. 70%)* | O1: "IKR Agrár mezőgazdasági biztosítási csomag" vagy "B illetve C" tipusú államilag díjtámogatott és GAZDA kiegészítő biztosítási csomag (GB444) (várható támogatás minimum 50 %)*
B2: Biztosítási alapadatok | I2: Igényel állami támogatást?
B3: Növény csoport választás: ==> | C3: Alap_szántóföldi_növények | O3: Alap biztosítás jég, tűz kockázatra | Q3: Kiegészítő biztosítás vihar kockázatra | U3: Kiegészítő biztosítás téli fagy kockázatra | Y3: Kalkulált biztosítási díj összesen
B4: Biztosítandó növények (kódok) | D4: Biztosítandó terület (ha) | E4: Várható hozam (tonna/ha) | F4: Termény biztosítandó egységára (tonna/HUF) | G4: Kalkulált biztosítási érték (HUF) | H4: Egy hektárra jutó biztosítási érték (HUF) | K4: Biztosítási díjak (állami támogatás nélkül) | Y4: Állami támogatás nélkül | Z4: Várható állami támogatás után*
B5: Nincs | C5: =Calc!A6 -> ==== | G5: =Calc!F6 -> 0 | H5: =Calc!G6 ->  | J5: =Calc!J6 -> ----- | L5: =Calc!N6 -> ----- | M5: =Calc!S6 -> 0 | O5: =Calc!V6 -> 0 | R5: =Calc!AF6 -> ----- | S5: =Calc!AG6 -> 0 | V5: =Calc!AO6 -> ----- | W5: =Calc!AP6 -> 0 | Y5: =Calc!AV6 -> 0 | Z5: =Calc!AW6 -> 0
B6: Nincs | C6: =Calc!A7 -> ==== | G6: =Calc!F7 -> 0 | H6: =Calc!G7 ->  | J6: =Calc!J7 -> ----- | L6: =Calc!N7 -> ----- | M6: =Calc!S7 -> 0 | O6: =Calc!V7 -> 0 | R6: =Calc!AF7 -> ----- | S6: =Calc!AG7 -> 0 | V6: =Calc!AO7 -> ----- | W6: =Calc!AP7 -> 0 | Y6: =Calc!AV7 -> 0 | Z6: =Calc!AW7 -> 0
B7: nincs | C7: =Calc!A8 -> ==== | G7: =Calc!F8 -> 0 | H7: =Calc!G8 ->  | J7: =Calc!J8 -> ----- | L7: =Calc!N8 -> ----- | M7: =Calc!S8 -> 0 | O7: =Calc!V8 -> 0 | R7: =Calc!AF8 -> ----- | S7: =Calc!AG8 -> 0 | V7: =Calc!AO8 -> ----- | W7: =Calc!AP8 -> 0 | Y7: =Calc!AV8 -> 0 | Z7: =Calc!AW8 -> 0
B8: nincs | C8: =Calc!A9 -> ==== | G8: =Calc!F9 -> 0 | H8: =Calc!G9 ->  | J8: =Calc!J9 -> ----- | L8: =Calc!N9 -> ----- | M8: =Calc!S9 -> 0 | O8: =Calc!V9 -> 0 | R8: =Calc!AF9 -> ----- | S8: =Calc!AG9 -> 0 | V8: =Calc!AO9 -> ----- | W8: =Calc!AP9 -> 0 | Y8: =Calc!AV9 -> 0 | Z8: =Calc!AW9 -> 0
B9: nincs | C9: =Calc!A10 -> ==== | G9: =Calc!F10 -> 0 | H9: =Calc!G10 ->  | J9: =Calc!J10 -> ----- | L9: =Calc!N10 -> ----- | M9: =Calc!S10 -> 0 | O9: =Calc!V10 -> 0 | R9: =Calc!AF10 -> ----- | S9: =Calc!AG10 -> 0 | V9: =Calc!AO10 -> ----- | W9: =Calc!AP10 -> 0 | Y9: =Calc!AV10 -> 0 | Z9: =Calc!AW10 -> 0
B10: Nincs | C10: =Calc!A11 -> ==== | G10: =Calc!F11 -> 0 | H10: =Calc!G11 ->  | J10: =Calc!J11 -> ----- | L10: =Calc!N11 -> ----- | M10: =Calc!S11 -> 0 | O10: =Calc!V11 -> 0 | R10: =Calc!AF11 -> ----- | S10: =Calc!AG11 -> 0 | V10: =Calc!AO11 -> ----- | W10: =Calc!AP11 -> 0 | Y10: =Calc!AV11 -> 0 | Z10: =Calc!AW11 -> 0
B11: Összesen | D11: =SUM(D5:D10) -> 0 | G11: =Calc!F12 -> 0 | K11: =Calc!S12 -> 0 | O11: =Calc!V12 -> 0 | S11: =Calc!AG12 -> 0 | W11: =Calc!AP12 -> 0 | Y11: =Calc!AV12 -> 0 | Z11: =SUM(Z5:Z10) -> 0
B13: (alkalmazható 2021. szeptember 1-től 2022. május 31-ig)
B16: Amennyiben sikerült felkelteni érdeklődését a kitöltött kalkulációt juttassa el az IKR Agrár Kft. területileg illetékes üzletkötőjéhez
B18: vagy | R18: Érdeklődő adatai: | V18: IKR Agrár partnerkód (ha már partnerünk)
B19: Szollingerné Böröcz Renáta növénybiztosítási ügyintéző részére
R20: Név:
B21: e-mail: | C21: szollingerne@ikragrar.hu
B22: Mobil: | C22: +36 (20) 414-2512 | R22: Tel.:
B23: Telefon: | C23: +36 (34) 569-027
B24: Fax.: | C24: +36 (34) 569-029 | R24: e-mail:
B31: Felhívjuk figyelmét, hogy a fenti kalkulációban feltüntetett biztosításra vonatkozó információk nem teljeskörűek, célja kizárólag a figyelem felhívása, azok egyes részletszabályairól érdeklődjön az illetékes üzletkötőjénél.
B32: Jelen díjkalkuláció kizárólag technikai eszköz, az abban foglaltak nem tekintendőek az IKR Agrár Kft. részéről végleges ajánlatnak.
B34: * A várható állami támogatást a 2021. szeptember havi információk alapján szerepeltetjük a kalkulációban, melynek végleges értéke változhat.

Sheet Calc (hidden)
L1: Vezérlések "A" típusú biztosítás | W1: Alap fedezet (tűz, jég) kezelése | AD1: Vihar kiegészítő kezelése | AM1: Télifagy kiegészítő kezelése
A2: kód | B2: növ. neve | V2: Kalkulált díjak
C3: Átvett biztosítási alapadatok | F3: ='Ajánlati tábla'!G4 -> Kalkulált biztosítási érték (HUF) | G3: ='Ajánlati tábla'!H4 -> Egy hektárra jutó biztosítási érték (HUF) | L3: "A" összkockázatú biztosítást | O3: Díjtételek és díjak | S3: Biztosítási díj | V3: Alap fedezet (tűz, jég) | AD3: Vihar kiegészítőt vezérlése | AM3: télifagy kiegészítő vezérlése
V4: Kalkulált díjak
C5: ='Ajánlati tábla'!D4 -> Biztosítandó terület (ha) | D5: ='Ajánlati tábla'!E4 -> Várható hozam (tonna/ha) | E5: ='Ajánlati tábla'!F4 -> Termény biztosítandó egységára (tonna/HUF) | I5: Kér állami támogatást? (aj ajánlati lapról) | J5: Állami támogatás szöveg | L5: "A" biztosítás kérhető? | M5: Igényel "A" összkockázatú biztosítást | N5: "A" összkockázatú díj szöveg | O5: Támogatás nélkül díjtétel | P5: Kiegészítő díjtétel | Q5: Támogatott díj támogatás nélkül összesen | R5: Kiegészítő díj összesen | S5: Támogatás nélkül összesen | T5: Támogatás után | V5: Teljes díj | W5: Támogatott díj | X5: Kiegészítő díj | Y5: Támogatott kulcs (tűz) | Z5: Kiegészítő kulcs (tűz) | AA5: Támogatott kulcs (jég) | AB5: Kiegészítő kulcs (jég) | AD5: Kérhető vihar? | AE5: Kér vihart (az ajaánlati lapról) | AF5: Vihar szöveg | AG5: Teljes díj | AH5: Támogatott díj | AI5: Kiegészítő díj | AJ5: Támogatott kulcs | AK5: Kiegészítő kulcs | AM5: Köthető télifagy | AN5: Kér télifagyot (az ajaánlati lapról) | AO5: Télifagy szöveg | AP5: Teljes díj | AQ5: Támogatott díj | AR5: Kiegészítő díj | AS5: Támogatott kulcs | AT5: Kiegészítő kulcs | AV5: Teljes díj (támogatás nélkül, alap + kiegészítő) | AW5: Támogatott díj összesen (az ajánlati táblára) | AX5: Támogatott díj összesen csak az "A" választása esetén | AY5: Támogatott díj összesen csak a "B és C" esetén | AZ5: Támogatott díj (összesen) | BA5: Kiegészítő díj (összesen) | BB5: Ellenőrzés
A6: =IFERROR(VLOOKUP(B6,'Díjak-növények'!B:AF,30,FALSE),"====") -> ==== | B6: ='Ajánlati tábla'!B5 -> Nincs | C6: ='Ajánlati tábla'!D5 -> 0 | D6: ='Ajánlati tábla'!E5 -> 0 | E6: ='Ajánlati tábla'!F5 -> 0 | F6: =IF(A6="------",0,C6*D6*E6) -> 0 | G6: =IF((F6+C6=0),"",F6/C6) ->  | I6: TRUE | J6: =IF(F6=0,"-----",IF(I6,"Igen","Nem")) -> ----- | L6: =VLOOKUP(A6,'Díjak-növények'!A:E,3,0) -> Nem | M6: FALSE | N6: =IF(E6=0,"-----",IF(L6="Nem","Nincs",IF(M6,"Igen","Nem"))) -> ----- | O6: =IF(N6="Igen",VLOOKUP(A6,'Díjak-növények'!$A$5:$Z$312,22,0),0) -> 0 | P6: =IF(N6="Igen",VLOOKUP(A6,'Díjak-növények'!$A$5:$AA$312,26,0)-O6,0) -> 0 | Q6: =IFERROR(F6*O6/100,0) -> 0 | R6: =IFERROR(F6*P6/100,0) -> 0 | S6: =Q6+R6 -> 0 | T6: =IF(J6="-----",0,IF(J6="Nem",S6,Q6*$D$15+R6)) -> 0 | V6: =W6+X6 -> 0 | W6: =F6*(Y6+AA6)/100 -> 0 | X6: =F6*(Z6+AB6)/100 -> 0 | Y6: 0 | Z6: =IF($N6="Igen",0,VLOOKUP($A6,'Díjak-növények'!$A:$Z,12,0)) -> 0 | AA6: =IF($N6="Igen",0,VLOOKUP($A6,'Díjak-növények'!$A:$Z,13,0)) -> 0 | AB6: =IF($N6="Igen",0,VLOOKUP($A6,'Díjak-növények'!$A:$Z,14,0)) -> 0 | AD6: =VLOOKUP($A6,'Díjak-növények'!$A:$Z,5,0) -> Nem | AE6: FALSE | AF6: =IF(F6=0,"-----",IF(OR(AD6="Nem",N6="Igen"),"Nincs",IF(AE6,"Igen","Nem"))) -> ----- | AG6: =AH6+AI6 -> 0 | AH6: =IF(AF6="Igen",F6*AJ6/100,0) -> 0 | AI6: =IF(AF6="Igen",F6*AK6/100,0) -> 0 | AJ6: =IF($AF6="Igen",VLOOKUP($A6,'Díjak-növények'!$A:$Z,18,0),0) -> 0 | AK6: =IF($AF6="Igen",VLOOKUP($A6,'Díjak-növények'!$A:$Z,19,0),0) -> 0 | AM6: =VLOOKUP($A6,'Díjak-növények'!$A:$Z,4,0) -> Nem | AN6: FALSE | AO6: =IF(F6=0,"-----",IF(OR(AM6="Nem",N6="Igen"),"Nincs",IF(AN6,"Igen","Nem"))) -> ----- | AP6: =AQ6+AR6 -> 0 | AQ6: =IF(AO6="Igen",F6*AS6/100,0) -> 0 | AR6: =IF(AO6="Igen",F6*AT6/100,0) -> 0 | AS6: =IF($AO6="Igen",VLOOKUP($A6,'Díjak-növények'!$A:$Z,17,0),0) -> 0 | AT6: 0 | AV6: =S6+V6+AG6+AP6 -> 0 | AW6: =IF(J6="Igen",AX6+AY6+BA6,AV6) -> 0 | AX6: =IF(N6="Igen",AZ6*(1-$D$15),0) -> 0 | AY6: =IF(J6="Igen",(W6+AH6+AQ6)*(1-$D$14),0) -> 0 | AZ6: =Q6+W6+AH6+AQ6 -> 0 | BA6: =R6+X6+AI6+AR6 -> 0 | BB6: =IF(AV6=(AZ6+BA6),"OK","Hiba") -> OK
A7: =IFERROR(VLOOKUP(B7,'Díjak-növények'!B:AF,30,FALSE),"====") -> ==== | B7: ='Ajánlati tábla'!B6 -> Nincs | C7: ='Ajánlati tábla'!D6 -> 0 | D7: ='Ajánlati tábla'!E6 -> 0 | E7: ='Ajánlati tábla'!F6 -> 0 | F7: =IF(A7="------",0,C7*D7*E7) -> 0 | I7: TRUE | J7: =IF(F7=0,"-----",IF(I7,"Igen","Nem")) -> ----- | L7: =VLOOKUP(A7,'Díjak-növények'!A:E,3,0) -> Nem | M7: FALSE | N7: =IF(E7=0,"-----",IF(L7="Nem","Nincs",IF(M7,"Igen","Nem"))) -> ----- | O7: =IF(N7="Igen",VLOOKUP(A7,'Díjak-növények'!$A$5:$Z$312,22,0),0) -> 0 | P7: =IF(N7="Igen",VLOOKUP(A7,'Díjak-növények'!$A$5:$AA$312,26,0)-O7,0) -> 0 | Q7: =IFERROR(F7*O7/100,0) -> 0 | R7: =IFERROR(F7*P7/100,0) -> 0 | S7: =Q7+R7 -> 0 | T7: =IF(J7="-----",0,IF(J7="Nem",S7,Q7*$D$15+R7)) -> 0 | V7: =W7+X7 -> 0 | W7: =F7*(Y7+AA7)/100 -> 0 | X7: =F7*(Z7+AB7)/100 -> 0 | Y7: 0 | Z7: =IF($N7="Igen",0,VLOOKUP($A7,'Díjak-növények'!$A:$Z,12,0)) -> 0 | AA7: =IF($N7="Igen",0,VLOOKUP($A7,'Díjak-növények'!$A:$Z,13,0)) -> 0 | AB7: =IF($N7="Igen",0,VLOOKUP($A7,'Díjak-növények'!$A:$Z,14,0)) -> 0 | AD7: =VLOOKUP($A7,'Díjak-növények'!$A:$Z,5,0) -> Nem | AE7: FALSE | AF7: =IF(F7=0,"-----",IF(OR(AD7="Nem",N7="Igen"),"Nincs",IF(AE7,"Igen","Nem"))) -> ----- | AG7: =AH7+AI7 -> 0 | AH7: =IF(AF7="Igen",F7*AJ7/100,0) -> 0 | AI7: =IF(AF7="Igen",F7*AK7/100,0) -> 0 | AJ7: =IF($AF7="Igen",VLOOKUP($A7,'Díjak-növények'!$A:$Z,18,0),0) -> 0 | AK7: =IF($N7="Nem",VLOOKUP($A7,'Díjak-növények'!$A:$Z,19,0),0) -> 0 | AM7: =VLOOKUP($A7,'Díjak-növények'!$A:$Z,4,0) -> Nem | AN7: FALSE | AO7: =IF(F7=0,"-----",IF(OR(AM7="Nem",N7="Igen"),"Nincs",IF(AN7,"Igen","Nem"))) -> ----- | AP7: =AQ7+AR7 -> 0 | AQ7: =IF(AO7="Igen",F7*AS7/100,0) -> 0 | AR7: =IF(AO7="Igen",F7*AT7/100,0) -> 0 | AS7: =IF($AO7="Nem",0,VLOOKUP($A7,'Díjak-növények'!$A:$Z,17,0)) -> 0 | AT7: 0 | AV7: =S7+V7+AG7+AP7 -> 0 | AW7: =IF(J7="Igen",AX7+AY7+BA7,AV7) -> 0 | AX7: =IF(N7="Igen",AZ7*(1-$D$15),0) -> 0 | AY7: =IF(J7="Igen",(W7+AH7+AQ7)*(1-$D$14),0) -> 0 | AZ7: =Q7+W7+AH7+AQ7 -> 0 | BA7: =R7+X7+AI7+AR7 -> 0 | BB7: =IF(AV7=(AZ7+BA7),"OK","Hiba") -> OK
A8: =IFERROR(VLOOKUP(B8,'Díjak-növények'!B:AF,30,FALSE),"====") -> ==== | B8: ='Ajánlati tábla'!B7 -> nincs | C8: ='Ajánlati tábla'!D7 -> 0 | D8: ='Ajánlati tábla'!E7 -> 0 | E8: ='Ajánlati tábla'!F7 -> 0 | F8: 0 | I8: TRUE | J8: ----- | L8: =VLOOKUP(A8,'Díjak-növények'!A:E,3,0) -> Nem | M8: FALSE | N8: ----- | O8: =IF(N8="Igen",VLOOKUP(A8,'Díjak-növények'!$A$5:$Z$312,22,0),0) -> 0 | P8: =IF(N8="Igen",VLOOKUP(A8,'Díjak-növények'!$A$5:$AA$312,26,0)-O8,0) -> 0 | Q8: 0 | R8: 0 | S8: 0 | T8: 0 | V8: 0 | W8: 0 | X8: 0 | Y8: 0 | Z8: =IF($N8="Igen",0,VLOOKUP($A8,'Díjak-növények'!$A:$Z,12,0)) -> 0 | AA8: =IF($N8="Igen",0,VLOOKUP($A8,'Díjak-növények'!$A:$Z,13,0)) -> 0 | AB8: =IF($N8="Igen",0,VLOOKUP($A8,'Díjak-növények'!$A:$Z,14,0)) -> 0 | AD8: =VLOOKUP($A8,'Díjak-növények'!$A:$Z,5,0) -> Nem | AE8: FALSE | AF8: ----- | AG8: 0 | AH8: 0 | AI8: 0 | AJ8: =IF($AF8="Igen",VLOOKUP($A8,'Díjak-növények'!$A:$Z,18,0),0) -> 0 | AK8: =IF($N8="Nem",VLOOKUP($A8,'Díjak-növények'!$A:$Z,19,0),0) -> 0 | AM8: =VLOOKUP($A8,'Díjak-növények'!$A:$Z,4,0) -> Nem | AN8: FALSE | AO8: ----- | AP8: 0 | AQ8: 0 | AR8: 0 | AS8: =IF($AO8="Nem",0,VLOOKUP($A8,'Díjak-növények'!$A:$Z,17,0)) -> 0 | AT8: 0 | AV8: 0 | AW8: 0 | AX8: 0 | AY8: 0 | AZ8: 0 | BA8: 0 | BB8: OK
A9: =IFERROR(VLOOKUP(B9,'Díjak-növények'!B:AF,30,FALSE),"====") -> ==== | B9: ='Ajánlati tábla'!B8 -> nincs | C9: ='Ajánlati tábla'!D8 -> 0 | D9: ='Ajánlati tábla'!E8 -> 0 | E9: ='Ajánlati tábla'!F8 -> 0 | F9: 0 | I9: TRUE | J9: ----- | L9: =VLOOKUP(A9,'Díjak-növények'!A:E,3,0) -> Nem | M9: FALSE | N9: ----- | O9: =IF(N9="Igen",VLOOKUP(A9,'Díjak-növények'!$A$5:$Z$312,22,0),0) -> 0 | P9: =IF(N9="Igen",VLOOKUP(A9,'Díjak-növények'!$A$5:$AA$312,26,0)-O9,0) -> 0 | Q9: 0 | R9: 0 | S9: 0 | T9: 0 | V9: 0 | W9: 0 | X9: 0 | Y9: 0 | Z9: =IF($N9="Igen",0,VLOOKUP($A9,'Díjak-növények'!$A:$Z,12,0)) -> 0 | AA9: =IF($N9="Igen",0,VLOOKUP($A9,'Díjak-növények'!$A:$Z,13,0)) -> 0 | AB9: =IF($N9="Igen",0,VLOOKUP($A9,'Díjak-növények'!$A:$Z,14,0)) -> 0 | AD9: =VLOOKUP($A9,'Díjak-növények'!$A:$Z,5,0) -> Nem | AE9: FALSE | AF9: ----- | AG9: 0 | AH9: 0 | AI9: 0 | AJ9: =IF($AF9="Igen",VLOOKUP($A9,'Díjak-növények'!$A:$Z,18,0),0) -> 0 | AK9: =IF($N9="Nem",VLOOKUP($A9,'Díjak-növények'!$A:$Z,19,0),0) -> 0 | AM9: =VLOOKUP($A9,'Díjak-növények'!$A:$Z,4,0) -> Nem | AN9: FALSE | AO9: ----- | AP9: 0 | AQ9: 0 | AR9: 0 | AS9: =IF($AO9="Nem",0,VLOOKUP($A9,'Díjak-növények'!$A:$Z,17,0)) -> 0 | AT9: 0 | AV9: 0 | AW9: 0 | AX9: 0 | AY9: 0 | AZ9: 0 | BA9: 0 | BB9: OK
A10: =IFERROR(VLOOKUP(B10,'Díjak-növények'!B:AF,30,FALSE),"====") -> ==== | B10: ='Ajánlati tábla'!B9 -> nincs | C10: ='Ajánlati tábla'!D9 -> 0 | D10: ='Ajánlati tábla'!E9 -> 0 | E10: ='Ajánlati tábla'!F9 -> 0 | F10: 0 | I10: TRUE | J10: ----- | L10: =VLOOKUP(A10,'Díjak-növények'!A:E,3,0) -> Nem | M10: FALSE | N10: ----- | O10: =IF(N10="Igen",VLOOKUP(A10,'Díjak-növények'!$A$5:$Z$312,22,0),0) -> 0 | P10: =IF(N10="Igen",VLOOKUP(A10,'Díjak-növények'!$A$5:$AA$312,26,0)-O10,0) -> 0 | Q10: 0 | R10: 0 | S10: 0 | T10: 0 | V10: 0 | W10: 0 | X10: 0 | Y10: 0 | Z10: =IF($N10="Igen",0,VLOOKUP($A10,'Díjak-növények'!$A:$Z,12,0)) -> 0 | AA10: =IF($N10="Igen",0,VLOOKUP($A10,'Díjak-növények'!$A:$Z,13,0)) -> 0 | AB10: =IF($N10="Igen",0,VLOOKUP($A10,'Díjak-növények'!$A:$Z,14,0)) -> 0 | AD10: =VLOOKUP($A10,'Díjak-növények'!$A:$Z,5,0) -> Nem | AE10: FALSE | AF10: ----- | AG10: 0 | AH10: 0 | AI10: 0 | AJ10: =IF($AF10="Igen",VLOOKUP($A10,'Díjak-növények'!$A:$Z,18,0),0) -> 0 | AK10: =IF($N10="Nem",VLOOKUP($A10,'Díjak-növények'!$A:$Z,19,0),0) -> 0 | AM10: =VLOOKUP($A10,'Díjak-növények'!$A:$Z,4,0) -> Nem | AN10: FALSE | AO10: ----- | AP10: 0 | AQ10: 0 | AR10: 0 | AS10: =IF($AO10="Nem",0,VLOOKUP($A10,'Díjak-növények'!$A:$Z,17,0)) -> 0 | AT10: 0 | AV10: 0 | AW10: 0 | AX10: 0 | AY10: 0 | AZ10: 0 | BA10: 0 | BB10: OK
A11: =IFERROR(VLOOKUP(B11,'Díjak-növények'!B:AF,30,FALSE),"====") -> ==== | B11: ='Ajánlati tábla'!B10 -> Nincs | C11: ='Ajánlati tábla'!D10 -> 0 | D11: ='Ajánlati tábla'!E10 -> 0 | E11: ='Ajánlati tábla'!F10 -> 0 | F11: 0 | I11: TRUE | J11: ----- | L11: =VLOOKUP(A11,'Díjak-növények'!A:E,3,0) -> Nem | M11: FALSE | N11: ----- | O11: =IF(N11="Igen",VLOOKUP(A11,'Díjak-növények'!$A$5:$Z$312,22,0),0) -> 0 | P11: =IF(N11="Igen",VLOOKUP(A11,'Díjak-növények'!$A$5:$AA$312,26,0)-O11,0) -> 0 | Q11: 0 | R11: 0 | S11: 0 | T11: 0 | V11: 0 | W11: 0 | X11: 0 | Y11: 0 | Z11: =IF($N11="Igen",0,VLOOKUP($A11,'Díjak-növények'!$A:$Z,12,0)) -> 0 | AA11: =IF($N11="Igen",0,VLOOKUP($A11,'Díjak-növények'!$A:$Z,13,0)) -> 0 | AB11: =IF($N11="Igen",0,VLOOKUP($A11,'Díjak-növények'!$A:$Z,14,0)) -> 0 | AD11: =VLOOKUP($A11,'Díjak-növények'!$A:$Z,5,0) -> Nem | AE11: FALSE | AF11: ----- | AG11: 0 | AH11: 0 | AI11: 0 | AJ11: =IF($AF11="Igen",VLOOKUP($A11,'Díjak-növények'!$A:$Z,18,0),0) -> 0 | AK11: =IF($N11="Nem",VLOOKUP($A11,'Díjak-növények'!$A:$Z,19,0),0) -> 0 | AM11: =VLOOKUP($A11,'Díjak-növények'!$A:$Z,4,0) -> Nem | AN11: FALSE | AO11: ----- | AP11: 0 | AQ11: 0 | AR11: 0 | AS11: =IF($AO11="Nem",0,VLOOKUP($A11,'Díjak-növények'!$A:$Z,17,0)) -> 0 | AT11: 0 | AV11: 0 | AW11: 0 | AX11: 0 | AY11: 0 | AZ11: 0 | BA11: 0 | BB11: OK
B12: Összesen | C12: =SUM(C6:C11) -> 0 | F12: =SUM(F6:F11) -> 0 | O12: =SUM(O6:O11) -> 0 | P12: =SUM(P6:P11) -> 0 | S12: =SUM(S6:S11) -> 0 | V12: =SUM(V6:V11) -> 0 | W12: =SUM(W6:W11) -> 0 | X12: =SUM(X6:X11) -> 0 | AG12: =SUM(AG6:AG11) -> 0 | AH12: 0 | AI12: 0 | AP12: =SUM(AP6:AP11) -> 0 | AQ12: =SUM(AQ6:AQ11) -> 0 | AR12: =SUM(AR6:AR11) -> 0 | AV12: =SUM(AV6:AV11) -> 0 | AW12: =SUM(AW6:AW11) -> 0 | AX12: =SUM(AX6:AX11) -> 0 | AZ12: =SUM(AZ6:AZ11) -> 0 | BA12: =SUM(BA6:BA11) -> 0
B14: Várható állami támogatás mértéke ("B, C") | D14: 0.5
B15: Várható állami támogatás mértéke ("A") | D15: 0.7

Sheet Díjak-növények (hidden)
A1: kód | B1: növ. neve | C1: Belső vezérlések | F1: Nem támogatott (GB444) | L1: Támogatott konstrukció "B" vagy "C" + GB444 | V1: kilenc kockázat összevonva | AB1: Belső vezérlések
F2: alapkockázat | I2: kiegészítő | L2: alapkockázat | Q2: kiegészítő télifagy "B" vagy "C" | R2: kiegészítő vihar | V2: Támogatott "A" típus | W2: önrészbiztosítás (GB444) | Z2: összesen | AB2: IKR Agrár csoport | AC2: IKR Csoport megnevezés | AD2: MVH csoport megnevezés | AE2: hasznosítási kód | AF2: Növény veve
C3: Köthető "A típusú" biztosítás | D3: Köthető télifagy kiegészítő | E3: Köthető vihar kiegészítő | F3: tűz | G3: jég | H3: összesen | I3: télifagy | J3: vihar | L3: tűz (GB444) | M3: jég ("B" vagy "C") | N3: kiegészítő jég (GB444) | O3: összesen | R3: Vihar "B" vagy "C" | S3: önrészbiztosítás vihar GB444 | T3: összesen | V3: összkockázat | W3: jég | X3: vihar | Y3: Speciális tűz
A5: ==== | C5: Nem | D5: =IF(I5<>0,"Igen","Nem") -> Nem | E5: =IF(J5<>0,"Igen","Nem") -> Nem | F5: 0 | G5: 0 | H5: 0 | I5: 0 | J5: 0 | L5: 0 | M5: 0 | N5: 0 | O5: 0 | Q5: 0 | R5: 0 | S5: 0 | T5: 0 | V5: 0 | W5: 0 | X5: 0 | Z5: 0 | AB5: 0 | AC5: Nincs | AD5: Nics | AE5: =A5 -> ==== | AF5: =B5 -> 0
A6: KAL02 | B6: Tavaszi búza | C6: Igen | D6: =IF(I6<>0,"Igen","Nem") -> Nem | E6: =IF(J6<>0,"Igen","Nem") -> Igen | F6: 0.06 | G6: 0.63 | H6: =F6+G6 -> 0.69 | J6: 0.5 | L6: 0.06 | M6: 0.53 | N6: 0.1 | O6: =L6+M6+N6 -> 0.69 | R6: 0.4 | S6: 0.1 | T6: =S6+R6 -> 0.5 | V6: 1.5 | W6: 0.1 | X6: 0.1 | Y6: 0.06 | Z6: =X6+W6+V6+Y6 -> 1.76 | AB6: 1 | AC6: Alap szántóföldi növények | AD6: Búza | AE6: =A6 -> KAL02 | AF6: =B6 -> Tavaszi búza
A7: KAL05 | B7: Tavaszi durumbúza | C7: Igen | D7: Nem | E7: Igen | F7: 0.06 | G7: 0.63 | H7: 0.69 | J7: 0.5 | L7: 0.06 | M7: 0.53 | N7: 0.1 | O7: =L7+M7+N7 -> 0.69 | R7: 0.4 | S7: 0.1 | T7: 0.5 | V7: 1.5 | W7: 0.1 | X7: 0.1 | Y7: 0.06 | Z7: =X7+W7+V7+Y7 -> 1.76 | AB7: 1 | AC7: Alap szántóföldi növények | AD7: Búza | AE7: KAL05 | AF7: Tavaszi durumbúza
A8: KAL07 | B8: Tavaszi tönköly búza | C8: Igen | D8: Nem | E8: Igen | F8: 0.06 | G8: 0.63 | H8: 0.69 | J8: 0.5 | L8: 0.06 | M8: 0.53 | N8: 0.1 | O8: 0.69 | R8: 0.4 | S8: 0.1 | T8: 0.5 | V8: 1.5 | W8: 0.1 | X8: 0.1 | Y8: 0.06 | Z8: 1.76 | AB8: 1 | AC8: Alap szántóföldi növények | AD8: Búza | AE8: KAL07 | AF8: Tavaszi tönköly búza
A9: KAL09 | B9: Tavaszi novum búza | C9: Igen | D9: Nem | E9: Igen | F9: 0.06 | G9: 0.63 | H9: 0.69 | J9: 0.5 | L9: 0.06 | M9: 0.53 | N9: 0.1 | O9: 0.69 | R9: 0.4 | S9: 0.1 | T9: 0.5 | V9: 1.5 | W9: 0.1 | X9: 0.1 | Y9: 0.06 | Z9: 1.76 | AB9: 1 | AC9: Alap szántóföldi növények | AD9: Búza | AE9: KAL09 | AF9: Tavaszi novum búza
A10: KAL11 | B10: Tavaszi tönke búza | C10: Igen | D10: Nem | E10: Igen | F10: 0.06 | G10: 0.63 | H10: 0.69 | J10: 0.5 | L10: 0.06 | M10: 0.53 | N10: 0.1 | O10: 0.69 | R10: 0.4 | S10: 0.1 | T10: 0.5 | V10: 1.5 | W10: 0.1 | X10: 0.1 | Y10: 0.06 | Z10: 1.76 | AB10: 1 | AC10: Alap szántóföldi növények | AD10: Búza | AE10: KAL11 | AF10: Tavaszi tönke búza
A11: KAL13 | B11: Tavaszi alakor búza | C11: Igen | D11: Nem | E11: Igen | F11: 0.06 | G11: 0.63 | H11: 0.69 | J11: 0.5 | L11: 0.06 | M11: 0.53 | N11: 0.1 | O11: 0.69 | R11: 0.4 | S11: 0.1 | T11: 0.5 | V11: 1.5 | W11: 0.1 | X11: 0.1 | Y11: 0.06 | Z11: 1.76 | AB11: 1 | AC11: Alap szántóföldi növények | AD11: Búza | AE11: KAL13 | AF11: Tavaszi alakor búza
A12: KAL18 | B12: Tavaszi árpa | C12: Igen | D12: Nem | E12: Igen | F12: 0.06 | G12: 0.63 | H12: 0.69 | J12: 0.5 | L12: 0.06 | M12: 0.53 | N12: 0.1 | O12: 0.69 | R12: 0.4 | S12: 0.1 | T12: 0.5 | V12: 1.5 | W12: 0.1 | X12: 0.1 | Y12: 0.06 | Z12: 1.76 | AB12: 1 | AC12: Alap szántóföldi növények | AD12: Árpa | AE12: KAL18 | AF12: Tavaszi árpa
A13: KAL26 | B13: Tavaszi tritikálé | C13: Igen | D13: Nem | E13: Igen | F13: 0.06 | G13: 0.63 | H13: 0.69 | J13: 0.5 | L13: 0.06 | M13: 0.53 | N13: 0.1 | O13: 0.69 | R13: 0.4 | S13: 0.1 | T13: 0.5 | V13: 1.5 | W13: 0.1 | X13: 0.1 | Y13: 0.06 | Z13: 1.76 | AB13: 1 | AC13: Alap szántóföldi növények | AD13: Tritikále | AE13: KAL26 | AF13: Tavaszi tritikálé
A14: KAL01 | B14: Őszi búza | C14: Igen | D14: Igen | E14: Igen | F14: 0.06 | G14: 0.63 | H14: 0.69 | I14: 0.38 | J14: 0.5 | L14: 0.06 | M14: 0.53 | N14: 0.1 | O14: 0.69 | Q14: 0.38 | R14: 0.4 | S14: 0.1 | T14: 0.5 | V14: 1.63 | W14: 0.1 | X14: 0.1 | Y14: 0.06 | Z14: 1.89 | AB14: 1 | AC14: Alap szántóföldi növények | AD14: Búza | AE14: KAL01 | AF14: Őszi búza
A15: KAL04 | B15: Őszi durumbúza | C15: Igen | D15: Igen | E15: Igen | F15: 0.06 | G15: 0.63 | H15: 0.69 | I15: 0.38 | J15: 0.5 | L15: 0.06 | M15: 0.53 | N15: 0.1 | O15: 0.69 | Q15: 0.38 | R15: 0.4 | S15: 0.1 | T15: 0.5 | V15: 1.63 | W15: 0.1 | X15: 0.1 | Y15: 0.06 | Z15: 1.89 | AB15: 1 | AC15: Alap szántóföldi növények | AD15: Búza | AE15: KAL04 | AF15: Őszi durumbúza
A16: KAL06 | B16: Őszi tönköly búza | C16: Igen | D16: Igen | E16: Igen | F16: 0.06 | G16: 0.63 | H16: 0.69 | I16: 0.38 | J16: 0.5 | L16: 0.06 | M16: 0.53 | N16: 0.1 | O16: 0.69 | Q16: 0.38 | R16: 0.4 | S16: 0.1 | T16: 0.5 | V16: 1.63 | W16: 0.1 | X16: 0.1 | Y16: 0.06 | Z16: 1.89 | AB16: 1 | AC16: Alap szántóföldi növények | AD16: Búza | AE16: KAL06 | AF16: Őszi tönköly búza
A17: KAL08 | B17: Őszi novum búza | C17: Igen | D17: Igen | E17: Igen | F17: 0.06 | G17: 0.63 | H17: 0.69 | I17: 0.38 | J17: 0.5 | L17: 0.06 | M17: 0.53 | N17: 0.1 | O17: 0.69 | Q17: 0.38 | R17: 0.4 | S17: 0.1 | T17: 0.5 | V17: 1.63 | W17: 0.1 | X17: 0.1 | Y17: 0.06 | Z17: 1.89 | AB17: 1 | AC17: Alap szántóföldi növények | AD17: Búza | AE17: KAL08 | AF17: Őszi novum búza
A18: KAL10 | B18: Őszi tönke búza | C18: Igen | D18: Igen | E18: Igen | F18: 0.06 | G18: 0.63 | H18: 0.69 | I18: 0.38 | J18: 0.5 | L18: 0.06 | M18: 0.53 | N18: 0.1 | O18: 0.69 | Q18: 0.38 | R18: 0.4 | S18: 0.1 | T18: 0.5 | V18: 1.63 | W18: 0.1 | X18: 0.1 | Y18: 0.06 | Z18: 1.89 | AB18: 1 | AC18: Alap szántóföldi növények | AD18: Búza | AE18: KAL10 | AF18: Őszi tönke búza
A19: KAL12 | B19: Őszi alakor búza | C19: Igen | D19: Igen | E19: Igen | F19: 0.06 | G19: 0.63 | H19: 0.69 | I19: 0.38 | J19: 0.5 | L19: 0.06 | M19: 0.53 | N19: 0.1 | O19: 0.69 | Q19: 0.38 | R19: 0.4 | S19: 0.1 | T19: 0.5 | V19: 1.63 | W19: 0.1 | X19: 0.1 | Y19: 0.06 | Z19: 1.89 | AB19: 1 | AC19: Alap szántóföldi növények | AD19: Búza | AE19: KAL12 | AF19: Őszi alakor búza
A20: KAL15 | B20: Rozs | C20: Igen | D20: Igen | E20: Igen | F20: 0.06 | G20: 0.63 | H20: 0.69 | I20: 0.38 | J20: 0.5 | L20: 0.06 | M20: 0.53 | N20: 0.1 | O20: 0.69 | Q20: 0.38 | R20: 0.4 | S20: 0.1 | T20: 0.5 | V20: 1.63 | W20: 0.1 | X20: 0.1 | Y20: 0.06 | Z20: 1.89 | AB20: 1 | AC20: Alap szántóföldi növények | AD20: Rozs | AE20: KAL15 | AF20: Rozs
A21: KAL17 | B21: Őszi árpa | C21: Igen | D21: Igen | E21: Igen | F21: 0.06 | G21: 0.63 | H21: 0.69 | I21: 0.38 | J21: 0.5 | L21: 0.06 | M21: 0.53 | N21: 0.1 | O21: 0.69 | Q21: 0.38 | R21: 0.4 | S21: 0.1 | T21: 0.5 | V21: 1.63 | W21: 0.1 | X21: 0.1 | Y21: 0.06 | Z21: 1.89 | AB21: 1 | AC21: Alap szántóföldi növények | AD21: Árpa | AE21: KAL17 | AF21: Őszi árpa
A22: KAL27 | B22: Őszi tritikálé | C22: Igen | D22: Igen | E22: Igen | F22: 0.06 | G22: 0.63 | H22: 0.69 | I22: 0.38 | J22: 0.5 | L22: 0.06 | M22: 0.53 | N22: 0.1 | O22: 0.69 | Q22: 0.38 | R22: 0.4 | S22: 0.1 | T22: 0.5 | V22: 1.63 | W22: 0.1 | X22: 0.1 | Y22: 0.06 | Z22: 1.89 | AB22: 1 | AC22: Alap szántóföldi növények | AD22: Tritikále | AE22: KAL27 | AF22: Őszi tritikálé
A23: IND23 | B23: Napraforgó | C23: Igen | D23: Nem | E23: Igen | F23: 0.06 | G23: 0.63 | H23: 0.69 | J23: 1.25 | L23: 0.06 | M23: 0.53 | N23: 0.1 | O23: 0.69 | R23: 1.15 | S23: 0.1 | T23: 1.25 | V23: 2.63 | W23: 0.1 | X23: 0.1 | Y23: 0.06 | Z23: 2.89 | AB23: 1 | AC23: Alap szántóföldi növények | AD23: Napraforgó | AE23: IND23 | AF23: Napraforgó
A24: KAL21 | B24: Kukorica | C24: Igen | D24: Nem | E24: Igen | F24: 0.06 | G24: 0.63 | H24: 0.69 | J24: 1.25 | L24: 0.06 | M24: 0.53 | N24: 0.1 | O24: 0.69 | R24: 1.15 | S24: 0.1 | T24: 1.25 | V24: 2.94 | W24: 0.1 | X24: 0.1 | Y24: 0.06 | Z24: 3.2 | AB24: 1 | AC24: Alap szántóföldi növények | AD24: Kukorica | AE24: KAL21 | AF24: Kukorica
A25: IND04 | B25: Tavaszi káposztarepce | C25: Igen | D25: Nem | E25: Igen | F25: 0.06 | G25: 1.75 | H25: 1.81 | J25: 1.75 | L25: 0.06 | M25: 1.65 | N25: 0.1 | O25: 1.81 | R25: 1.65 | S25: 0.1 | T25: 1.75 | V25: 3.88 | W25: 0.1 | X25: 0.1 | Y25: 0.06 | Z25: 4.14 | AB25: 1 | AC25: Alap szántóföldi növények | AD25: Repce | AE25: IND04 | AF25: Tavaszi káposztarepce
A26: IND03 | B26: Őszi káposztarepce | C26: Igen | D26: Igen | E26: Igen | F26: 0.06 | G26: 1.75 | H26: 1.81 | I26: 1.75 | J26: 1.75 | L26: 0.06 | M26: 1.65 | N26: 0.1 | O26: 1.81 | Q26: 1.75 | R26: 1.65 | S26: 0.1 | T26: 1.75 | V26: 4.5 | W26: 0.1 | X26: 0.1 | Y26: 0.06 | Z26: 4.76 | AB26: 1 | AC26: Alap szántóföldi növények | AD26: Repce | AE26: IND03 | AF26: Őszi káposztarepce
A27: HAG01 | B27: Hagyományos gyümölcsös alma | C27: Igen | D27: Nem | E27: Igen | F27: 0.06 | G27: 10 | H27: 10.06 | J27: 1.88 | L27: 0.06 | M27: 9.9 | N27: 0.1 | O27: 10.06 | R27: 1.78 | S27: 0.1 | T27: 1.88 | V27: 11.38 | W27: 0.1 | X27: 0.1 | Y27: 0.06 | Z27: 11.64 | AB27: 3 | AC27: Gyömölcsösök - gyümölcsök | AD27: Hagyományos gyümölcsösök | AE27: HAG01 | AF27: Hagyományos gyümölcsös alma
A28: HAG15 | B28: Hagyományos gyümölcsös körte | C28: Igen | D28: Nem | E28: Igen | F28: 0.06 | G28: 10 | H28: 10.06 | J28: 1.88 | L28: 0.06 | M28: 9.9 | N28: 0.1 | O28: 10.06 | R28: 1.78 | S28: 0.1 | T28: 1.88 | V28: 11.38 | W28: 0.1 | X28: 0.1 | Y28: 0.06 | Z28: 11.64 | AB28: 3 | AC28: Gyömölcsösök - gyümölcsök | AD28: Hagyományos gyümölcsösök | AE28: HAG15 | AF28: Hagyományos gyümölcsös körte
A29: ULT01 | B29: Alma | C29: Igen | D29: Nem | E29: Igen | F29: 0.06 | G29: 10 | H29: 10.06 | J29: 1.88 | L29: 0.06 | M29: 9.9 | N29: 0.1 | O29: 10.06 | R29: 1.78 | S29: 0.1 | T29: 1.88 | V29: 11.38 | W29: 0.1 | X29: 0.1 | Y29: 0.06 | Z29: 11.64 | AB29: 3 | AC29: Gyömölcsösök - gyümölcsök | AD29: Gyümölcsfák | AE29: ULT01 | AF29: Alma
A30: ULT15 | B30: Körte | C30: Igen | D30: Nem | E30: Igen | F30: 0.06 | G30: 10 | H30: 10.06 | J30: 1.88 | L30: 0.06 | M30: 9.9 | N30: 0.1 | O30: 10.06 | R30: 1.78 | S30: 0.1 | T30: 1.88 | V30: 11.38 | W30: 0.1 | X30: 0.1 | Y30: 0.06 | Z30: 11.64 | AB30: 3 | AC30: Gyömölcsösök - gyümölcsök | AD30: Gyümölcsfák | AE30: ULT15 | AF30: Körte
A31: ULT19 | B31: Minőségi borszőlő ültetvény | C31: Igen | D31: Nem | E31: Igen | F31: 0.06 | G31: 10 | H31: 10.06 | J31: 1.88 | L31: 0.06 | M31: 9.9 | N31: 0.1 | O31: 10.06 | R31: 1.78 | S31: 0.1 | T31: 1.88 | V31: 11.38 | W31: 0.1 | X31: 0.1 | Y31: 0.06 | Z31: 11.64 | AB31: 3 | AC31: Gyömölcsösök - gyümölcsök | AD31: Szőlő | AE31: ULT19 | AF31: Minőségi borszőlő ültetvény
A32: ULT20 | B32: Egyéb borszőlő szőlőültetvény | C32: Igen | D32: Nem | E32: Igen | F32: 0.06 | G32: 10 | H32: 10.06 | J32: 1.88 | L32: 0.06 | M32: 9.9 | N32: 0.1 | O32: 10.06 | R32: 1.78 | S32: 0.1 | T32: 1.88 | V32: 11.38 | W32: 0.1 | X32: 0.1 | Y32: 0.06 | Z32: 11.64 | AB32: 3 | AC32: Gyömölcsösök - gyümölcsök | AD32: Szőlő | AE32: ULT20 | AF32: Egyéb borszőlő szőlőültetvény
A33: ULT29 | B33: Csemegeszőlő ültetvény | C33: Igen | D33: Nem | E33: Igen | F33: 0.06 | G33: 10 | H33: 10.06 | J33: 1.88 | L33: 0.06 | M33: 9.9 | N33: 0.1 | O33: 10.06 | R33: 1.78 | S33: 0.1 | T33: 1.88 | V33: 11.38 | W33: 0.1 | X33: 0.1 | Y33: 0.06 | Z33: 11.64 | AB33: 3 | AC33: Gyömölcsösök - gyümölcsök | AD33: Szőlő | AE33: ULT29 | AF33: Csemegeszőlő ültetvény
A34: BUR01 | B34: Burgonya | C34: Nem | D34: Nem | E34: Nem | F34: 0.06 | G34: 0.63 | H34: 0.69 | L34: 0.06 | M34: 0.53 | N34: 0.1 | O34: 0.69 | AB34: 9 | AC34: Egyéb növények | AD34: Burgonya | AE34: BUR01 | AF34: Burgonya
A35: CUK01 | B35: Cukorrépa | C35: Nem | D35: Nem | E35: Nem | F35: 0.06 | G35: 0.63 | H35: 0.69 | L35: 0.06 | M35: 0.53 | N35: 0.1 | O35: 0.69 | AB35: 9 | AC35: Egyéb növények | AD35: Cukorrépa | AE35: CUK01 | AF35: Cukorrépa
A36: FRU01 | B36: Görög dinnye | C36: Nem | D36: Nem | E36: Nem | F36: 0.06 | G36: 10 | H36: 10.06 | L36: 0.06 | M36: 9.9 | N36: 0.1 | O36: 10.06 | AB36: 3 | AC36: Gyömölcsösök - gyümölcsök | AD36: Dinnye | AE36: FRU01 | AF36: Görög dinnye
A37: FRU02 | B37: Tökre oltott görög dinnye | C37: Nem | D37: Nem | E37: Nem | F37: 0.06 | G37: 10 | H37: 10.06 | L37: 0.06 | M37: 9.9 | N37: 0.1 | O37: 10.06 | AB37: 3 | AC37: Gyömölcsösök - gyümölcsök | AD37: Dinnye | AE37: FRU02 | AF37: Tökre oltott görög dinnye
A38: FRU03 | B38: Sárgadinnye | C38: Nem | D38: Nem | E38: Nem | F38: 0.06 | G38: 10 | H38: 10.06 | L38: 0.06 | M38: 9.9 | N38: 0.1 | O38: 10.06 | AB38: 3 | AC38: Gyömölcsösök - gyümölcsök | AD38: Dinnye | AE38: FRU03 | AF38: Sárgadinnye
A39: FRU04 | B39: Földieper (szamóca) | C39: Nem | D39: Nem | E39: Nem | F39: 0.06 | G39: 10 | H39: 10.06 | L39: 0.06 | M39: 9.9 | N39: 0.1 | O39: 10.06 | AB39: 3 | AC39: Gyömölcsösök - gyümölcsök | AD39: Földieper (szamóca) | AE39: FRU04 | AF39: Földieper (szamóca)
A40: IND01 | B40: Szójabab | C40: Nem | D40: Nem | E40: Nem | F40: 0.06 | G40: 1.88 | H40: 1.94 | L40: 0.06 | M40: 1.78 | N40: 0.1 | O40: 1.94 | AB40: 9 | AC40: Egyéb növények | AD40: Szójabab | AE40: IND01 | AF40: Szójabab
A41: IND09 | B41: Földimogyoró | C41: Nem | D41: Nem | E41: Nem | F41: 0.06 | G41: 1.25 | H41: 1.31 | L41: 0.06 | M41: 1.15 | N41: 0.1 | O41: 1.31 | AB41: 9 | AC41: Egyéb növények | AD41: Földimogyoró | AE41: IND09 | AF41: Földimogyoró
A42: IND11 | B42: Fehér mustár | C42: Nem | D42: Igen | E42: Igen | F42: 0.06 | G42: 1.75 | H42: 1.81 | I42: 1.75 | J42: 1.75 | L42: 0.06 | M42: 1.65 | N42: 0.1 | O42: 1.81 | Q42: 1.75 | R42: 1.65 | S42: 0.1 | T42: =S42+R42 -> 1.75 | AB42: 9 | AC42: Egyéb növények | AD42: Mustár | AE42: IND11 | AF42: Fehér mustár
A43: IND12 | B43: Fekete mustár | C43: Nem | D43: Igen | E43: Igen | F43: 0.06 | G43: 1.75 | H43: 1.81 | I43: 1.75 | J43: 1.75 | L43: 0.06 | M43: 1.65 | N43: 0.1 | O43: 1.81 | Q43: 1.75 | R43: 1.65 | S43: 0.1 | T43: =S43+R43 -> 1.75 | AB43: 9 | AC43: Egyéb növények | AD43: Mustár | AE43: IND12 | AF43: Fekete mustár
A44: IND14 | B44: Mák | C44: Nem | D44: Igen | E44: Igen | F44: 0.06 | G44: 1.88 | H44: 1.94 | I44: 1.88 | J44: 1.88 | L44: 0.06 | M44: 1.78 | N44: 0.1 | O44: 1.94 | Q44: 1.88 | R44: 1.78 | S44: 0.1 | T44: =S44+R44 -> 1.88 | AB44: 9 | AC44: Egyéb növények | AD44: Mák | AE44: IND14 | AF44: Mák
A45: IND15 | B45: Retek | C45: Nem | D45: Nem | E45: Nem | F45: 0.06 | G45: 1.88 | H45: 1.94 | L45: 0.06 | M45: 1.78 | N45: 0.1 | O45: 1.94 | AB45: 9 | AC45: Egyéb növények | AD45: Retek | AE45: IND15 | AF45: Retek
A46: IND16 | B46: Olajretek | C46: Nem | D46: Nem | E46: Nem | F46: 0.06 | G46: 1.56 | H46: 1.62 | L46: 0.06 | M46: 1.46 | N46: 0.1 | O46: 1.62 | AB46: 9 | AC46: Egyéb növények | AD46: Retek | AE46: IND16 | AF46: Olajretek
A47: IND24 | B47: Hibrid napraforgó | C47: Nem | D47: Nem | E47: Igen | F47: 0.06 | G47: 1.75 | H47: 1.81 | J47: 1.75 | L47: 0.06 | M47: 1.65 | N47: 0.1 | O47: 1.81 | R47: 1.65 | S47: 0.1 | T47: =S47+R47 -> 1.75 | AB47: 9 | AC47: Egyéb növények | AD47: Napraforgó | AE47: IND24 | AF47: Hibrid napraforgó
A48: KAL19 | B48: Tavaszi zab | C48: Nem | D48: Nem | E48: Igen | F48: 0.06 | G48: 0.63 | H48: 0.69 | J48: 0.5 | L48: 0.06 | M48: 0.53 | N48: 0.1 | O48: 0.69 | R48: 0.4 | S48: 0.1 | T48: =S48+R48 -> 0.5 | AB48: 9 | AC48: Egyéb növények | AD48: Zab | AE48: KAL19 | AF48: Tavaszi zab
A49: KAL20 | B49: Őszi zab | C49: Nem | D49: Igen | E49: Igen | F49: 0.06 | G49: 0.63 | H49: 0.69 | I49: 0.38 | J49: 0.5 | L49: 0.06 | M49: 0.53 | N49: 0.1 | O49: 0.69 | Q49: 0.38 | R49: 0.4 | S49: 0.1 | T49: =S49+R49 -> 0.5 | AB49: 9 | AC49: Egyéb növények | AD49: Zab | AE49: KAL20 | AF49: Őszi zab
A50: KAL23 | B50: Csemegekukorica | C50: Nem | D50: Nem | E50: Igen | F50: 0.06 | G50: 1.88 | H50: 1.94 | J50: 1.88 | L50: 0.06 | M50: 1.78 | N50: 0.1 | O50: 1.94 | R50: 1.78 | S50: 0.1 | T50: =S50+R50 -> 1.88 | AB50: 9 | AC50: Egyéb növények | AD50: Kukorica | AE50: KAL23 | AF50: Csemegekukorica
A51: KAL25 | B51: Hibrid kukorica | C51: Nem | D51: Nem | E51: Igen | F51: 0.06 | G51: 1.88 | H51: 1.94 | J51: 1.88 | L51: 0.06 | M51: 1.78 | N51: 0.1 | O51: 1.94 | R51: 1.78 | S51: 0.1 | T51: =S51+R51 -> 1.88 | AB51: 9 | AC51: Egyéb növények | AD51: Kukorica | AE51: KAL25 | AF51: Hibrid kukorica
A52: PIL01 | B52: Cukorborsó | C52: Nem | D52: Nem | E52: Nem | F52: 0.06 | G52: 1.88 | H52: 1.94 | L52: 0.06 | M52: 1.78 | N52: 0.1 | O52: 1.94 | AB52: 9 | AC52: Egyéb növények | AD52: Borsó | AE52: PIL01 | AF52: Cukorborsó
A53: PIL02 | B53: Mezei borsó | C53: Nem | D53: Nem | E53: Nem | F53: 0.06 | G53: 1.56 | H53: 1.62 | L53: 0.06 | M53: 1.46 | N53: 0.1 | O53: 1.62 | AB53: 9 | AC53: Egyéb növények | AD53: Borsó | AE53: PIL02 | AF53: Mezei borsó
A54: PIL03 | B54: Őszi takarmányborsó | C54: Nem | D54: Igen | E54: Nem | F54: 0.06 | G54: 1.56 | H54: 1.62 | I54: 0.69 | L54: 0.06 | M54: 1.46 | N54: 0.1 | O54: 1.62 | Q54: 0.69 | AB54: 9 | AC54: Egyéb növények | AD54: Borsó | AE54: PIL03 | AF54: Őszi takarmányborsó
A55: PIL04 | B55: Őszi zöldborsó | C55: Nem | D55: Igen | E55: Nem | F55: 0.06 | G55: 1.88 | H55: 1.94 | I55: 0.69 | L55: 0.06 | M55: 1.78 | N55: 0.1 | O55: 1.94 | Q55: 0.69 | AB55: 9 | AC55: Egyéb növények | AD55: Borsó | AE55: PIL04 | AF55: Őszi zöldborsó
A56: PIL05 | B56: Szárazborsó (Sárgaborsó) | C56: Nem | D56: Nem | E56: Nem | F56: 0.06 | G56: 1.56 | H56: 1.62 | L56: 0.06 | M56: 1.46 | N56: 0.1 | O56: 1.62 | AB56: 9 | AC56: Egyéb növények | AD56: Borsó | AE56: PIL05 | AF56: Szárazborsó (Sárgaborsó)
A57: PIL06 | B57: Tavaszi takarmányborsó | C57: Nem | D57: Nem | E57: Igen | F57: 0.06 | G57: 1.56 | H57: 1.62 | J57: 0.69 | L57: 0.06 | M57: 1.46 | N57: 0.1 | O57: 1.62 | R57: 0.59 | S57: 0.1 | T57: =S57+R57 -> 0.69 | AB57: 9 | AC57: Egyéb növények | AD57: Borsó | AE57: PIL06 | AF57: Tavaszi takarmányborsó
A58: PIL07 | B58: Tavaszi zöldborsó | C58: Nem | D58: Nem | E58: Igen | F58: 0.06 | G58: 1.88 | H58: 1.94 | J58: 0.69 | L58: 0.06 | M58: 1.78 | N58: 0.1 | O58: 1.94 | R58: 0.59 | S58: 0.1 | T58: =S58+R58 -> 0.69 | AB58: 9 | AC58: Egyéb növények | AD58: Borsó | AE58: PIL07 | AF58: Tavaszi zöldborsó
A59: PIL09 | B59: Lóbab (Disznóbab) | C59: Nem | D59: Nem | E59: Nem | F59: 0.06 | G59: 1.88 | H59: 1.94 | L59: 0.06 | M59: 1.78 | N59: 0.1 | O59: 1.94 | AB59: 9 | AC59: Egyéb növények | AD59: Bab | AE59: PIL09 | AF59: Lóbab (Disznóbab)
A60: PIL12 | B60: Szárazbab | C60: Nem | D60: Nem | E60: Nem | F60: 0.06 | G60: 1.56 | H60: 1.62 | L60: 0.06 | M60: 1.46 | N60: 0.1 | O60: 1.62 | AB60: 9 | AC60: Egyéb növények | AD60: Bab | AE60: PIL12 | AF60: Szárazbab
A61: PIL13 | B61: Zöldbab | C61: Nem | D61: Nem | E61: Nem | F61: 0.06 | G61: 1.88 | H61: 1.94 | L61: 0.06 | M61: 1.78 | N61: 0.1 | O61: 1.94 | AB61: 9 | AC61: Egyéb növények | AD61: Bab | AE61: PIL13 | AF61: Zöldbab
A62: PIL24 | B62: Lencse | C62: Nem | D62: Nem | E62: Nem | F62: 0.06 | G62: 1.88 | H62: 1.94 | L62: 0.06 | M62: 1.78 | N62: 0.1 | O62: 1.94 | AB62: 9 | AC62: Egyéb növények | AD62: Lencse | AE62: PIL24 | AF62: Lencse
A63: RIZ03 | B63: Rizs | C63: Nem | D63: Nem | E63: Nem | F63: 0.06 | G63: 1.25 | H63: 1.31 | L63: 0.06 | M63: 1.15 | N63: 0.1 | O63: 1.31 | AB63: 9 | AC63: Egyéb növények | AD63: Rizs | AE63: RIZ03 | AF63: Rizs
A64: VEG01 | B64: Karfiol | C64: Nem | D64: Nem | E64: Nem | F64: 0.06 | G64: 1.88 | H64: 1.94 | L64: 0.06 | M64: 1.78 | N64: 0.1 | O64: 1.94 | AB64: 5 | AC64: Zöltségek | AD64: Karfiol | AE64: VEG01 | AF64: Karfiol
A65: VEG02 | B65: Brokkoli | C65: Nem | D65: Nem | E65: Nem | F65: 0.06 | G65: 1.56 | H65: 1.62 | L65: 0.06 | M65: 1.46 | N65: 0.1 | O65: 1.62 | AB65: 5 | AC65: Zöltségek | AD65: Brokkoli | AE65: VEG02 | AF65: Brokkoli
A66: VEG04 | B66: Fejes káposzta | C66: Nem | D66: Nem | E66: Nem | F66: 0.06 | G66: 1.88 | H66: 1.94 | L66: 0.06 | M66: 1.78 | N66: 0.1 | O66: 1.94 | AB66: 5 | AC66: Zöltségek | AD66: Káposzta | AE66: VEG04 | AF66: Fejes káposzta
A67: VEG05 | B67: Kelkáposzta | C67: Nem | D67: Nem | E67: Nem | F67: 0.06 | G67: 1.88 | H67: 1.94 | L67: 0.06 | M67: 1.78 | N67: 0.1 | O67: 1.94 | AB67: 5 | AC67: Zöltségek | AD67: Káposzta | AE67: VEG05 | AF67: Kelkáposzta
A68: VEG06 | B68: Vöröskáposzta | C68: Nem | D68: Nem | E68: Nem | F68: 0.06 | G68: 1.88 | H68: 1.94 | L68: 0.06 | M68: 1.78 | N68: 0.1 | O68: 1.94 | AB68: 5 | AC68: Zöltségek | AD68: Káposzta | AE68: VEG06 | AF68: Vöröskáposzta
A69: VEG10 | B69: Zeller | C69: Nem | D69: Nem | E69: Nem | F69: 0.06 | G69: 0.63 | H69: 0.69 | L69: 0.06 | M69: 0.53 | N69: 0.1 | O69: 0.69 | AB69: 5 | AC69: Zöltségek | AD69: Zeller | AE69: VEG10 | AF69: Zeller
A70: VEG14 | B70: Csemegehagyma | C70: Nem | D70: =IF(I70<>0,"Igen","Nem") -> Nem | E70: =IF(J70<>0,"Igen","Nem") -> Nem | F70: 0.06 | G70: 1.25 | H70: =F70+G70 -> 1.31 | L70: 0.06 | M70: 1.15 | N70: 0.1 | O70: 1.31 | AB70: 5 | AC70: Zöltségek | AD70: Hagyma | AE70: =A70 -> VEG14 | AF70: =B70 -> Csemegehagyma
A71: VEG15 | B71: Őszi vöröshagyma | C71: Nem | D71: Nem | E71: Nem | F71: 0.06 | G71: 1.25 | H71: 1.31 | L71: 0.06 | M71: 1.15 | N71: 0.1 | O71: =L71+M71+N71 -> 1.31 | AB71: 5 | AC71: Zöltségek | AD71: Hagyma | AE71: VEG15 | AF71: Őszi vöröshagyma
A72: VEG21 | B72: Sóska | C72: Nem | D72: Nem | E72: Nem | F72: 0.06 | G72: 1.25 | H72: 1.31 | L72: 0.06 | M72: 1.15 | N72: 0.1 | O72: 1.31 | AB72: 5 | AC72: Zöltségek | AD72: Sóska | AE72: VEG21 | AF72: Sóska
A73: VEG22 | B73: Spenót | C73: Nem | D73: Nem | E73: Nem | F73: 0.06 | G73: 1.25 | H73: 1.31 | L73: 0.06 | M73: 1.15 | N73: 0.1 | O73: 1.31 | AB73: 5 | AC73: Zöltségek | AD73: Spenót | AE73: VEG22 | AF73: Spenót
A74: VEG23 | B74: Spárga | C74: Nem | D74: Nem | E74: Nem | F74: 0.06 | G74: 2.5 | H74: 2.56 | L74: 0.06 | M74: 2.4 | N74: 0.1 | O74: 2.56 | AB74: 5 | AC74: Zöltségek | AD74: Spárga | AE74: VEG23 | AF74: Spárga
A75: VEG26 | B75: Petrezselyem gyökér (fehérrépa) | C75: Nem | D75: Nem | E75: Nem | F75: 0.06 | G75: 0.63 | H75: 0.69 | L75: 0.06 | M75: 0.53 | N75: 0.1 | O75: 0.69 | AB75: 5 | AC75: Zöltségek | AD75: Petrezselyem | AE75: VEG26 | AF75: Petrezselyem gyökér (fehérrépa)
A76: VEG27 | B76: Petrezselyem levél | C76: Nem | D76: Nem | E76: Nem | F76: 0.06 | G76: 0.63 | H76: 0.69 | L76: 0.06 | M76: 0.53 | N76: 0.1 | O76: 0.69 | AB76: 5 | AC76: Zöltségek | AD76: Petrezselyem | AE76: VEG27 | AF76: Petrezselyem levél
A77: VEG33 | B77: Paradicsom | C77: Nem | D77: Nem | E77: Nem | F77: 0.06 | G77: 3.75 | H77: 3.81 | L77: 0.06 | M77: 3.65 | N77: 0.1 | O77: 3.81 | AB77: 5 | AC77: Zöltségek | AD77: Paradicsom | AE77: VEG33 | AF77: Paradicsom
A78: VEG34 | B78: Uborka | C78: Nem | D78: Nem | E78: Nem | F78: 0.06 | G78: 5 | H78: 5.06 | L78: 0.06 | M78: 4.9 | N78: 0.1 | O78: 5.06 | AB78: 5 | AC78: Zöltségek | AD78: Uborka | AE78: VEG34 | AF78: Uborka
A79: VEG36 | B79: Főzőtök | C79: Nem | D79: Nem | E79: Nem | F79: 0.06 | G79: 1.88 | H79: 1.94 | L79: 0.06 | M79: 1.78 | N79: 0.1 | O79: 1.94 | AB79: 5 | AC79: Zöltségek | AD79: Tök | AE79: VEG36 | AF79: Főzőtök
A80: VEG37 | B80: Sütőtök | C80: Nem | D80: Nem | E80: Nem | F80: 0.06 | G80: 1.88 | H80: 1.94 | L80: 0.06 | M80: 1.78 | N80: 0.1 | O80: 1.94 | AB80: 5 | AC80: Zöltségek | AD80: Tök | AE80: VEG37 | AF80: Sütőtök
A81: VEG38 | B81: Káposztatök | C81: Nem | D81: Nem | E81: Nem | F81: 0.06 | G81: 1.88 | H81: 1.94 | L81: 0.06 | M81: 1.78 | N81: 0.1 | O81: 1.94 | AB81: 5 | AC81: Zöltségek | AD81: Tök | AE81: VEG38 | AF81: Káposztatök
A82: VEG39 | B82: Olajtök | C82: Nem | D82: Nem | E82: Nem | F82: 0.06 | G82: 2.19 | H82: 2.25 | L82: 0.06 | M82: 2.09 | N82: 0.1 | O82: 2.25 | AB82: 5 | AC82: Zöltségek | AD82: Tök | AE82: VEG39 | AF82: Olajtök
A83: VEG40 | B83: Csillagtök/patiszon | C83: Nem | D83: Nem | E83: Nem | F83: 0.06 | G83: 6.25 | H83: 6.31 | L83: 0.06 | M83: 6.15 | N83: 0.1 | O83: 6.31 | AB83: 5 | AC83: Zöltségek | AD83: Tök | AE83: VEG40 | AF83: Csillagtök/patiszon
A84: VEG41 | B84: Spárgatök | C84: Nem | D84: Nem | E84: Nem | F84: 0.06 | G84: 1.88 | H84: 1.94 | L84: 0.06 | M84: 1.78 | N84: 0.1 | O84: 1.94 | AB84: 5 | AC84: Zöltségek | AD84: Tök | AE84: VEG41 | AF84: Spárgatök
A85: VEG42 | B85: Cukkini | C85: Nem | D85: Nem | E85: Nem | F85: 0.06 | G85: 1.56 | H85: 1.62 | L85: 0.06 | M85: 1.46 | N85: 0.1 | O85: 1.62 | AB85: 5 | AC85: Zöltségek | AD85: Tök | AE85: VEG42 | AF85: Cukkini
A86: VEG43 | B86: Paprika | C86: Nem | D86: Nem | E86: Nem | F86: 0.06 | G86: 6.25 | H86: 6.31 | L86: 0.06 | M86: 6.15 | N86: 0.1 | O86: 6.31 | AB86: 5 | AC86: Zöltségek | AD86: Paprika | AE86: VEG43 | AF86: Paprika
A87: VEG44 | B87: Fűszerpaprika | C87: Nem | D87: Nem | E87: Nem | F87: 0.06 | G87: 6.25 | H87: 6.31 | L87: 0.06 | M87: 6.15 | N87: 0.1 | O87: 6.31 | AB87: 5 | AC87: Zöltségek | AD87: Paprika | AE87: VEG44 | AF87: Fűszerpaprika
A88: VEG45 | B88: Sárgarépa | C88: Nem | D88: Nem | E88: Nem | F88: 0.06 | G88: 0.63 | H88: 0.69 | L88: 0.06 | M88: 0.53 | N88: 0.1 | O88: 0.69 | AB88: 5 | AC88: Zöltségek | AD88: Sárgarépa | AE88: VEG45 | AF88: Sárgarépa
A89: VEG46 | B89: Cékla | C89: Nem | D89: Nem | E89: Nem | F89: 0.06 | G89: 0.63 | H89: 0.69 | L89: 0.06 | M89: 0.53 | N89: 0.1 | O89: 0.69 | AB89: 5 | AC89: Zöltségek | AD89: Cékla | AE89: VEG46 | AF89: Cékla
A90: VEG48 | B90: Torma | C90: Nem | D90: Nem | E90: Nem | F90: 0.06 | G90: 0.63 | H90: 0.69 | L90: 0.06 | M90: 0.53 | N90: 0.1 | O90: 0.69 | AB90: 5 | AC90: Zöltségek | AD90: Torma | AE90: VEG48 | AF90: Torma
A91: VEG49 | B91: Pasztinák | C91: Nem | D91: Nem | E91: Nem | F91: 0.06 | G91: 1.88 | H91: 1.94 | L91: 0.06 | M91: 1.78 | N91: 0.1 | O91: 1.94 | AB91: 5 | AC91: Zöltségek | AD91: Pasztinák | AE91: VEG49 | AF91: Pasztinák
A92: VEG53 | B92: Tavaszi vöröshagyma | C92: Nem | D92: Nem | E92: Igen | F92: 0.06 | G92: 1.57 | H92: 1.63 | J92: 0.63 | L92: 0.06 | M92: 1.47 | N92: 0.1 | O92: 1.63 | R92: 0.53 | S92: 0.1 | T92: 0.63 | AB92: 5 | AC92: Zöltségek | AD92: Hagyma | AE92: VEG53 | AF92: Tavaszi vöröshagyma
A93: FRU05 | B93: Ribiszke | C93: Nem | D93: Nem | E93: Nem | F93: 0.63 | G93: 10 | H93: 10.63 | L93: 0.63 | M93: 9.9 | N93: 0.1 | O93: 10.63 | AB93: 3 | AC93: Gyömölcsösök - gyümölcsök | AD93: Ribiszke | AE93: FRU05 | AF93: Ribiszke
A94: FRU08 | B94: Málna | C94: Nem | D94: Nem | E94: Nem | F94: 0.63 | G94: 10 | H94: 10.63 | L94: 0.63 | M94: 9.9 | N94: 0.1 | O94: 10.63 | AB94: 3 | AC94: Gyömölcsösök - gyümölcsök | AD94: Málna | AE94: FRU08 | AF94: Málna
A95: FRU09 | B95: Piszke | C95: Nem | D95: Nem | E95: Nem | F95: 0.63 | G95: 10 | H95: 10.63 | L95: 0.63 | M95: 9.9 | N95: 0.1 | O95: 10.63 | AB95: 3 | AC95: Gyömölcsösök - gyümölcsök | AD95: Piszke (köszméte) | AE95: FRU09 | AF95: Piszke
A96: FRU15 | B96: Fekete bodza | C96: Nem | D96: Nem | E96: Nem | F96: 0.63 | G96: 10 | H96: 10.63 | L96: 0.63 | M96: 9.9 | N96: 0.1 | O96: 10.63 | AB96: 3 | AC96: Gyömölcsösök - gyümölcsök | AD96: Bodza | AE96: FRU15 | AF96: Fekete bodza
A97: FRU16 | B97: Egyéb bodza | C97: Nem | D97: Nem | E97: Nem | F97: 0.63 | G97: 10 | H97: 10.63 | L97: 0.63 | M97: 9.9 | N97: 0.1 | O97: 10.63 | AB97: 3 | AC97: Gyömölcsösök - gyümölcsök | AD97: Bodza | AE97: FRU16 | AF97: Egyéb bodza
A98: FRU17 | B98: Áfonya | C98: Nem | D98: Nem | E98: Igen | F98: 0.63 | G98: 10 | H98: 10.63 | J98: 1.88 | L98: 0.63 | M98: 9.9 | N98: 0.1 | O98: 10.63 | R98: 1.78 | S98: 0.1 | T98: =S98+R98 -> 1.88 | AB98: 3 | AC98: Gyömölcsösök - gyümölcsök | AD98: Áfonya | AE98: FRU17 | AF98: Áfonya
A99: HAG03 | B99: Hagyományos gyümölcsös őszibarack | C99: Nem | D99: Nem | E99: Igen | F99: 0.63 | G99: 10 | H99: 10.63 | J99: 5 | L99: 0.63 | M99: 9.9 | N99: 0.1 | O99: 10.63 | R99: 4.9 | S99: 0.1 | T99: =S99+R99 -> 5 | AB99: 3 | AC99: Gyömölcsösök - gyümölcsök | AD99: Hagyományos gyümölcsösök | AE99: HAG03 | AF99: Hagyományos gyümölcsös őszibarack
A100: HAG04 | B100: Hagyományos gyümölcsös kajszibarack (sárgabarack) | C100: Nem | D100: Nem | E100: Nem | F100: 0.63 | G100: 10 | H100: 10.63 | L100: 0.63 | M100: 9.9 | N100: 0.1 | O100: 10.63 | AB100: 3 | AC100: Gyömölcsösök - gyümölcsök | AD100: Hagyományos gyümölcsösök | AE100: HAG04 | AF100: Hagyományos gyümölcsös kajszibarack (sárgabarack)
A101: HAG06 | B101: Hagyományos gyümölcsös szilva | C101: Nem | D101: Nem | E101: Nem | F101: 0.63 | G101: 10 | H101: 10.63 | L101: 0.63 | M101: 9.9 | N101: 0.1 | O101: 10.63 | AB101: 3 | AC101: Gyömölcsösök - gyümölcsök | AD101: Hagyományos gyümölcsösök | AE101: HAG06 | AF101: Hagyományos gyümölcsös szilva
A102: HAG07 | B102: Hagyományos gyümölcsös naspolya | C102: Nem | D102: Nem | E102: Nem | F102: 0.63 | G102: 10 | H102: 10.63 | L102: 0.63 | M102: 9.9 | N102: 0.1 | O102: 10.63 | AB102: 3 | AC102: Gyömölcsösök - gyümölcsök | AD102: Hagyományos gyümölcsösök | AE102: HAG07 | AF102: Hagyományos gyümölcsös naspolya
A103: HAG08 | B103: Hagyományos gyümölcsös dió | C103: Nem | D103: Nem | E103: Nem | F103: 0.63 | G103: 10 | H103: 10.63 | L103: 0.63 | M103: 9.9 | N103: 0.1 | O103: 10.63 | AB103: 3 | AC103: Gyömölcsösök - gyümölcsök | AD103: Hagyományos gyümölcsösök | AE103: HAG08 | AF103: Hagyományos gyümölcsös dió
A104: HAG09 | B104: Hagyományos gyümölcsös mogyoró | C104: Nem | D104: Nem | E104: Nem | F104: 0.63 | G104: 10 | H104: 10.63 | L104: 0.63 | M104: 9.9 | N104: 0.1 | O104: 10.63 | AB104: 3 | AC104: Gyömölcsösök - gyümölcsök | AD104: Hagyományos gyümölcsösök | AE104: HAG09 | AF104: Hagyományos gyümölcsös mogyoró
A105: HAG10 | B105: Hagyományos gyümölcsös mandula | C105: Nem | D105: Nem | E105: Nem | F105: 0.63 | G105: 10 | H105: 10.63 | L105: 0.63 | M105: 9.9 | N105: 0.1 | O105: 10.63 | AB105: 3 | AC105: Gyömölcsösök - gyümölcsök | AD105: Hagyományos gyümölcsösök | AE105: HAG10 | AF105: Hagyományos gyümölcsös mandula
A106: HAG16 | B106: Hagyományos gyümölcsös meggy | C106: Nem | D106: Nem | E106: Nem | F106: 0.63 | G106: 10 | H106: 10.63 | L106: 0.63 | M106: 9.9 | N106: 0.1 | O106: 10.63 | AB106: 3 | AC106: Gyömölcsösök - gyümölcsök | AD106: Hagyományos gyümölcsösök | AE106: HAG16 | AF106: Hagyományos gyümölcsös meggy
A107: HAG17 | B107: Hagyományos gyümölcsös cseresznye | C107: Nem | D107: Nem | E107: Nem | F107: 0.63 | G107: 10 | H107: 10.63 | L107: 0.63 | M107: 9.9 | N107: 0.1 | O107: 10.63 | AB107: 3 | AC107: Gyömölcsösök - gyümölcsök | AD107: Hagyományos gyümölcsösök | AE107: HAG17 | AF107: Hagyományos gyümölcsös cseresznye
A108: HAG18 | B108: Hagyományos gyümölcsös birs | C108: Nem | D108: Nem | E108: Nem | F108: 0.63 | G108: 10 | H108: 10.63 | L108: 0.63 | M108: 9.9 | N108: 0.1 | O108: 10.63 | AB108: 3 | AC108: Gyömölcsösök - gyümölcsök | AD108: Hagyományos gyümölcsösök | AE108: HAG18 | AF108: Hagyományos gyümölcsös birs
A109: HAG19 | B109: Hagyományos gyümölcsös nektarin | C109: Nem | D109: Nem | E109: Nem | F109: 0.63 | G109: 10 | H109: 10.63 | L109: 0.63 | M109: 9.9 | N109: 0.1 | O109: 10.63 | AB109: 3 | AC109: Gyömölcsösök - gyümölcsök | AD109: Hagyományos gyümölcsösök | AE109: HAG19 | AF109: Hagyományos gyümölcsös nektarin
A110: PIL29 | B110: Csicseriborsó | C110: Nem | D110: Nem | E110: Nem | F110: 0.06 | G110: 1.88 | H110: 1.94 | L110: 0.06 | M110: 1.78 | N110: 0.1 | O110: 1.94 | AB110: 9 | AC110: Egyéb növények | AD110: Csicseriborsó | AE110: PIL29 | AF110: Csicseriborsó
A111: ULT03 | B111: Őszibarack | C111: Nem | D111: Nem | E111: Nem | F111: 0.63 | G111: 10 | H111: 10.63 | L111: 0.63 | M111: 9.9 | N111: 0.1 | O111: 10.63 | AB111: 3 | AC111: Gyömölcsösök - gyümölcsök | AD111: Gyümölcsfák | AE111: ULT03 | AF111: Őszibarack
A112: ULT04 | B112: Kajszibarack (sárgabarack) | C112: Nem | D112: Nem | E112: Nem | F112: 0.63 | G112: 10 | H112: 10.63 | L112: 0.63 | M112: 9.9 | N112: 0.1 | O112: 10.63 | AB112: 3 | AC112: Gyömölcsösök - gyümölcsök | AD112: Gyümölcsfák | AE112: ULT04 | AF112: Kajszibarack (sárgabarack)
A113: ULT05 | B113: Nektarin | C113: Nem | D113: Nem | E113: Nem | F113: 0.63 | G113: 10 | H113: 10.63 | L113: 0.63 | M113: 9.9 | N113: 0.1 | O113: 10.63 | AB113: 3 | AC113: Gyömölcsösök - gyümölcsök | AD113: Gyümölcsfák | AE113: ULT05 | AF113: Nektarin
A114: ULT06 | B114: Szilva | C114: Nem | D114: Nem | E114: Nem | F114: 0.63 | G114: 10 | H114: 10.63 | L114: 0.63 | M114: 9.9 | N114: 0.1 | O114: 10.63 | AB114: 3 | AC114: Gyömölcsösök - gyümölcsök | AD114: Gyümölcsfák | AE114: ULT06 | AF114: Szilva
A115: ULT07 | B115: Naspolya | C115: Nem | D115: Nem | E115: Nem | F115: 0.63 | G115: 10 | H115: 10.63 | L115: 0.63 | M115: 9.9 | N115: 0.1 | O115: 10.63 | AB115: 3 | AC115: Gyömölcsösök - gyümölcsök | AD115: Gyümölcsfák | AE115: ULT07 | AF115: Naspolya
A116: ULT08 | B116: Dió | C116: Nem | D116: Nem | E116: Nem | F116: 0.63 | G116: 10 | H116: 10.63 | L116: 0.63 | M116: 9.9 | N116: 0.1 | O116: 10.63 | AB116: 3 | AC116: Gyömölcsösök - gyümölcsök | AD116: Gyümölcsfák | AE116: ULT08 | AF116: Dió
A117: ULT09 | B117: Mogyoró | C117: Nem | D117: Nem | E117: Nem | F117: 0.63 | G117: 10 | H117: 10.63 | L117: 0.63 | M117: 9.9 | N117: 0.1 | O117: 10.63 | AB117: 3 | AC117: Gyömölcsösök - gyümölcsök | AD117: Gyümölcsfák | AE117: ULT09 | AF117: Mogyoró
A118: ULT10 | B118: Mandula | C118: Nem | D118: Nem | E118: Nem | F118: 0.63 | G118: 10 | H118: 10.63 | L118: 0.63 | M118: 9.9 | N118: 0.1 | O118: 10.63 | AB118: 3 | AC118: Gyömölcsösök - gyümölcsök | AD118: Gyümölcsfák | AE118: ULT10 | AF118: Mandula
A119: ULT16 | B119: Meggy | C119: Nem | D119: Nem | E119: Nem | F119: 0.63 | G119: 10 | H119: 10.63 | L119: 0.63 | M119: 9.9 | N119: 0.1 | O119: 10.63 | AB119: 3 | AC119: Gyömölcsösök - gyümölcsök | AD119: Gyümölcsfák | AE119: ULT16 | AF119: Meggy
A120: ULT17 | B120: Cseresznye | C120: Nem | D120: Nem | E120: Nem | F120: 0.63 | G120: 10 | H120: 10.63 | L120: 0.63 | M120: 9.9 | N120: 0.1 | O120: 10.63 | AB120: 3 | AC120: Gyömölcsösök - gyümölcsök | AD120: Gyümölcsfák | AE120: ULT17 | AF120: Cseresznye
A121: ULT18 | B121: Birs | C121: Nem | D121: Nem | E121: Igen | F121: 0.63 | G121: 10 | H121: 10.63 | J121: 1.88 | L121: 0.63 | M121: 9.9 | N121: 0.1 | O121: 10.63 | R121: 1.78 | S121: 0.1 | T121: =S121+R121 -> 1.88 | AB121: 3 | AC121: Gyömölcsösök - gyümölcsök | AD121: Gyümölcsfák | AE121: ULT18 | AF121: Birs
A122: ABE01 | B122: Abesszin (etiópiai) mustár | C122: Nem | D122: Igen | E122: Igen | F122: 0.06 | G122: 1.75 | H122: 1.81 | I122: 1.75 | J122: 1.75 | L122: 0.06 | M122: 1.65 | N122: 0.1 | O122: 1.81 | Q122: 1.75 | R122: 1.65 | S122: 0.1 | T122: =S122+R122 -> 1.75 | AB122: 4 | AC122: Fűszernövények | AD122: Abesszin (etiópiai) mustár | AE122: ABE01 | AF122: Abesszin (etiópiai) mustár
A123: AGF02 | B123: Angyalgyökér | C123: Nem | D123: Nem | E123: Nem | F123: 0.1 | G123: 0.99 | H123: 1.09 | L123: 0.1 | M123: 0.89 | N123: 0.1 | O123: 1.09 | AB123: 4 | AC123: Fűszernövények | AD123: Aromás-, gyógy- és fűszernövények | AE123: AGF02 | AF123: Angyalgyökér
A124: AGF03 | B124: Kamilla | C124: Nem | D124: Nem | E124: Nem | F124: 0.1 | G124: 2.98 | H124: 3.08 | L124: 0.1 | M124: 2.88 | N124: 0.1 | O124: 3.08 | AB124: 4 | AC124: Fűszernövények | AD124: Aromás-, gyógy- és fűszernövények | AE124: AGF03 | AF124: Kamilla
A125: AGF05 | B125: Digitalis | C125: Nem | D125: Nem | E125: Nem | F125: 0.1 | G125: 2.98 | H125: 3.08 | L125: 0.1 | M125: 2.88 | N125: 0.1 | O125: 3.08 | AB125: 4 | AC125: Fűszernövények | AD125: Aromás-, gyógy- és fűszernövények | AE125: AGF05 | AF125: Digitalis
A126: AGF06 | B126: Tárnics | C126: Nem | D126: Nem | E126: Nem | F126: 0.1 | G126: 0.99 | H126: 1.09 | L126: 0.1 | M126: 0.89 | N126: 0.1 | O126: 1.09 | AB126: 4 | AC126: Fűszernövények | AD126: Aromás-, gyógy- és fűszernövények | AE126: AGF06 | AF126: Tárnics
A127: AGF07 | B127: Izsóp | C127: Nem | D127: =IF(I127<>0,"Igen","Nem") -> Nem | E127: =IF(J127<>0,"Igen","Nem") -> Nem | F127: 0.1 | G127: 2.98 | H127: =F127+G127 -> 3.08 | L127: 0.1 | M127: 2.88 | N127: 0.1 | O127: 3.08 | AB127: 4 | AC127: Fűszernövények | AD127: Aromás-, gyógy- és fűszernövények | AE127: AGF07 | AF127: Izsóp
A128: AGF08 | B128: Jázmin | C128: Nem | D128: Nem | E128: Nem | F128: 0.1 | G128: 0.99 | H128: 1.09 | L128: 0.1 | M128: 0.89 | N128: 0.1 | O128: =L128+M128+N128 -> 1.09 | AB128: 4 | AC128: Fűszernövények | AD128: Aromás-, gyógy- és fűszernövények | AE128: AGF08 | AF128: Jázmin
A129: AGF09 | B129: Levendula | C129: Nem | D129: Nem | E129: Nem | F129: 0.1 | G129: 2.98 | H129: 3.08 | L129: 0.1 | M129: 2.88 | N129: 0.1 | O129: 3.08 | AB129: 4 | AC129: Fűszernövények | AD129: Aromás-, gyógy- és fűszernövények | AE129: AGF09 | AF129: Levendula
A130: AGF10 | B130: Majoranna | C130: Nem | D130: Nem | E130: Nem | F130: 0.1 | G130: 0.99 | H130: 1.09 | L130: 0.1 | M130: 0.89 | N130: 0.1 | O130: 1.09 | AB130: 4 | AC130: Fűszernövények | AD130: Aromás-, gyógy- és fűszernövények | AE130: AGF10 | AF130: Majoranna
A131: AGF11 | B131: Menta | C131: Nem | D131: Nem | E131: Nem | F131: 0.1 | G131: 2.98 | H131: 3.08 | L131: 0.1 | M131: 2.88 | N131: 0.1 | O131: 3.08 | AB131: 4 | AC131: Fűszernövények | AD131: Aromás-, gyógy- és fűszernövények | AE131: AGF11 | AF131: Menta
A132: AGF12 | B132: Meténg | C132: Nem | D132: Nem | E132: Nem | F132: 0.1 | G132: 0.5 | H132: 0.6 | L132: 0.1 | M132: 0.4 | N132: 0.1 | O132: 0.6 | AB132: 4 | AC132: Fűszernövények | AD132: Aromás-, gyógy- és fűszernövények | AE132: AGF12 | AF132: Meténg
A133: AGF13 | B133: Utifű (Psyllium) | C133: Nem | D133: Nem | E133: Nem | F133: 0.1 | G133: 0.99 | H133: 1.09 | L133: 0.1 | M133: 0.89 | N133: 0.1 | O133: 1.09 | AB133: 4 | AC133: Fűszernövények | AD133: Aromás-, gyógy- és fűszernövények | AE133: AGF13 | AF133: Utifű (Psyllium)
A134: AGF14 | B134: Sáfrány | C134: Nem | D134: Nem | E134: Nem | F134: 0.1 | G134: 1.99 | H134: 2.09 | L134: 0.1 | M134: 1.89 | N134: 0.1 | O134: 2.09 | AB134: 4 | AC134: Fűszernövények | AD134: Aromás-, gyógy- és fűszernövények | AE134: =A134 -> AGF14 | AF134: =B134 -> Sáfrány
A135: AGF15 | B135: Körömvirág | C135: Nem | D135: Nem | E135: Nem | F135: 0.1 | G135: 2.98 | H135: 3.08 | L135: 0.1 | M135: 2.88 | N135: 0.1 | O135: 3.08 | AB135: 4 | AC135: Fűszernövények | AD135: Aromás-, gyógy- és fűszernövények | AE135: AGF15 | AF135: Körömvirág
A136: AGF17 | B136: Macskagyökérfű | C136: Nem | D136: Nem | E136: Nem | F136: 0.1 | G136: 0.99 | H136: 1.09 | L136: 0.1 | M136: 0.89 | N136: 0.1 | O136: 1.09 | AB136: 4 | AC136: Fűszernövények | AD136: Aromás-, gyógy- és fűszernövények | AE136: AGF17 | AF136: Macskagyökérfű
A137: AGF18 | B137: Tárkony | C137: Nem | D137: Nem | E137: Nem | F137: 0.1 | G137: 2.98 | H137: 3.08 | L137: 0.1 | M137: 2.88 | N137: 0.1 | O137: 3.08 | AB137: 4 | AC137: Fűszernövények | AD137: Aromás-, gyógy- és fűszernövények | AE137: AGF18 | AF137: Tárkony
A138: AGF19 | B138: Fűszerkömény | C138: Nem | D138: Nem | E138: Nem | F138: 0.1 | G138: 2.98 | H138: 3.08 | L138: 0.1 | M138: 2.88 | N138: 0.1 | O138: 3.08 | AB138: 4 | AC138: Fűszernövények | AD138: Aromás-, gyógy- és fűszernövények | AE138: AGF19 | AF138: Fűszerkömény
A139: AGF20 | B139: Citromfű | C139: Nem | D139: Nem | E139: Nem | F139: 0.1 | G139: 2.98 | H139: 3.08 | L139: 0.1 | M139: 2.88 | N139: 0.1 | O139: 3.08 | AB139: 4 | AC139: Fűszernövények | AD139: Aromás-, gyógy- és fűszernövények | AE139: AGF20 | AF139: Citromfű
A140: AGF21 | B140: Bazsalikom | C140: Nem | D140: Nem | E140: Nem | F140: 0.1 | G140: 2.98 | H140: 3.08 | L140: 0.1 | M140: 2.88 | N140: 0.1 | O140: 3.08 | AB140: 4 | AC140: Fűszernövények | AD140: Aromás-, gyógy- és fűszernövények | AE140: AGF21 | AF140: Bazsalikom
A141: AGF22 | B141: Rozmaring | C141: Nem | D141: Nem | E141: Nem | F141: 0.1 | G141: 2.98 | H141: 3.08 | L141: 0.1 | M141: 2.88 | N141: 0.1 | O141: 3.08 | AB141: 4 | AC141: Fűszernövények | AD141: Aromás-, gyógy- és fűszernövények | AE141: AGF22 | AF141: Rozmaring
A142: AGF23 | B142: Lestyán | C142: Nem | D142: Nem | E142: Nem | F142: 0.1 | G142: 2.98 | H142: 3.08 | L142: 0.1 | M142: 2.88 | N142: 0.1 | O142: 3.08 | AB142: 4 | AC142: Fűszernövények | AD142: Aromás-, gyógy- és fűszernövények | AE142: AGF23 | AF142: Lestyán
A143: AGF24 | B143: Szöszös ökörfarkkóró | C143: Nem | D143: Nem | E143: Nem | F143: 0.1 | G143: 0.99 | H143: 1.09 | L143: 0.1 | M143: 0.89 | N143: 0.1 | O143: 1.09 | AB143: 4 | AC143: Fűszernövények | AD143: Aromás-, gyógy- és fűszernövények | AE143: AGF24 | AF143: Szöszös ökörfarkkóró
A144: AGF25 | B144: Anyarozs | C144: Nem | D144: Nem | E144: Nem | F144: 0.1 | G144: 2.98 | H144: 3.08 | L144: 0.1 | M144: 2.88 | N144: 0.1 | O144: 3.08 | AB144: 4 | AC144: Fűszernövények | AD144: Aromás-, gyógy- és fűszernövények | AE144: AGF25 | AF144: Anyarozs
A145: AGF26 | B145: Kapor | C145: Nem | D145: Nem | E145: Nem | F145: 0.1 | G145: 1.99 | H145: 2.09 | L145: 0.1 | M145: 1.89 | N145: 0.1 | O145: 2.09 | AB145: 4 | AC145: Fűszernövények | AD145: Aromás-, gyógy- és fűszernövények | AE145: AGF26 | AF145: Kapor
A146: AGF28 | B146: Ánizs | C146: Nem | D146: Nem | E146: Nem | F146: 0.1 | G146: 2.98 | H146: 3.08 | L146: 0.1 | M146: 2.88 | N146: 0.1 | O146: 3.08 | AB146: 4 | AC146: Fűszernövények | AD146: Aromás-, gyógy- és fűszernövények | AE146: AGF28 | AF146: Ánizs
A147: AGF29 | B147: Borsikafű | C147: Nem | D147: Nem | E147: Nem | F147: 0.1 | G147: 2.98 | H147: 3.08 | L147: 0.1 | M147: 2.88 | N147: 0.1 | O147: 3.08 | AB147: 4 | AC147: Fűszernövények | AD147: Aromás-, gyógy- és fűszernövények | AE147: AGF29 | AF147: Borsikafű
A148: AGF30 | B148: Koriander | C148: Nem | D148: Nem | E148: Nem | F148: 0.1 | G148: 0.99 | H148: 1.09 | L148: 0.1 | M148: 0.89 | N148: 0.1 | O148: 1.09 | AB148: 4 | AC148: Fűszernövények | AD148: Aromás-, gyógy- és fűszernövények | AE148: AGF30 | AF148: Koriander
A149: AGF31 | B149: Máriatövis | C149: Nem | D149: Nem | E149: Nem | F149: 0.1 | G149: 0.99 | H149: 1.09 | L149: 0.1 | M149: 0.89 | N149: 0.1 | O149: 1.09 | AB149: 4 | AC149: Fűszernövények | AD149: Aromás-, gyógy- és fűszernövények | AE149: AGF31 | AF149: Máriatövis
A150: AGF32 | B150: Kerti kakukkfű | C150: Nem | D150: Nem | E150: Nem | F150: 0.1 | G150: 0.99 | H150: 1.09 | L150: 0.1 | M150: 0.89 | N150: 0.1 | O150: 1.09 | AB150: 4 | AC150: Fűszernövények | AD150: Aromás-, gyógy- és fűszernövények | AE150: AGF32 | AF150: Kerti kakukkfű
A151: AGF33 | B151: Sáfrányos szeklice | C151: Nem | D151: Nem | E151: Nem | F151: 0.1 | G151: 2.98 | H151: 3.08 | L151: 0.1 | M151: 2.88 | N151: 0.1 | O151: 3.08 | AB151: 4 | AC151: Fűszernövények | AD151: Aromás-, gyógy- és fűszernövények | AE151: AGF33 | AF151: Sáfrányos szeklice
A152: AGF35 | B152: Orvosi zsálya | C152: Nem | D152: Nem | E152: Nem | F152: 0.1 | G152: 0.99 | H152: 1.09 | L152: 0.1 | M152: 0.89 | N152: 0.1 | O152: 1.09 | AB152: 4 | AC152: Fűszernövények | AD152: Aromás-, gyógy- és fűszernövények | AE152: AGF35 | AF152: Orvosi zsálya
A153: AGF36 | B153: Kerti ruta | C153: Nem | D153: Nem | E153: Nem | F153: 0.1 | G153: 0.99 | H153: 1.09 | L153: 0.1 | M153: 0.89 | N153: 0.1 | O153: 1.09 | AB153: 4 | AC153: Fűszernövények | AD153: Aromás-, gyógy- és fűszernövények | AE153: AGF36 | AF153: Kerti ruta
A154: AGF37 | B154: Ánizsizsóp | C154: Nem | D154: Nem | E154: Nem | F154: 0.1 | G154: 0.99 | H154: 1.09 | L154: 0.1 | M154: 0.89 | N154: 0.1 | O154: 1.09 | AB154: 4 | AC154: Fűszernövények | AD154: Aromás-, gyógy- és fűszernövények | AE154: AGF37 | AF154: Ánizsizsóp
A155: AGF38 | B155: Ánizsmenta | C155: Nem | D155: Nem | E155: Nem | F155: 0.1 | G155: 0.99 | H155: 1.09 | L155: 0.1 | M155: 0.89 | N155: 0.1 | O155: 1.09 | AB155: 4 | AC155: Fűszernövények | AD155: Aromás-, gyógy- és fűszernövények | AE155: AGF38 | AF155: Ánizsmenta
A156: AGF39 | B156: Bíbor kasvirág (Echinacea) | C156: Nem | D156: Nem | E156: Nem | F156: 0.1 | G156: 0.99 | H156: 1.09 | L156: 0.1 | M156: 0.89 | N156: 0.1 | O156: 1.09 | AB156: 4 | AC156: Fűszernövények | AD156: Aromás-, gyógy- és fűszernövények | AE156: AGF39 | AF156: Bíbor kasvirág (Echinacea)
A157: AGF40 | B157: Cickafark | C157: Nem | D157: Nem | E157: Nem | F157: 0.1 | G157: 0.99 | H157: 1.09 | L157: 0.1 | M157: 0.89 | N157: 0.1 | O157: 1.09 | AB157: 4 | AC157: Fűszernövények | AD157: Aromás-, gyógy- és fűszernövények | AE157: AGF40 | AF157: Cickafark
A158: AGF41 | B158: Oregánó (szurokfű) | C158: Nem | D158: Nem | E158: Nem | F158: 0.1 | G158: 0.99 | H158: 1.09 | L158: 0.1 | M158: 0.89 | N158: 0.1 | O158: 1.09 | AB158: 4 | AC158: Fűszernövények | AD158: Aromás-, gyógy- és fűszernövények | AE158: AGF41 | AF158: Oregánó (szurokfű)
A159: AGF44 | B159: Borágó | C159: Nem | D159: Nem | E159: Nem | F159: 0.1 | G159: 0.99 | H159: 1.09 | L159: 0.1 | M159: 0.89 | N159: 0.1 | O159: 1.09 | AB159: 4 | AC159: Fűszernövények | AD159: Aromás-, gyógy- és fűszernövények | AE159: AGF44 | AF159: Borágó
A160: AGF47 | B160: Gyermekláncfű | C160: Nem | D160: Nem | E160: Nem | F160: 0.1 | G160: 0.99 | H160: 1.09 | L160: 0.1 | M160: 0.89 | N160: 0.1 | O160: 1.09 | AB160: 4 | AC160: Fűszernövények | AD160: Aromás-, gyógy- és fűszernövények | AE160: AGF47 | AF160: Gyermekláncfű
A161: AGF48 | B161: Jázminpakóca (stevia) | C161: Nem | D161: Nem | E161: Nem | F161: 0.1 | G161: 0.99 | H161: 1.09 | L161: 0.1 | M161: 0.89 | N161: 0.1 | O161: 1.09 | AB161: 4 | AC161: Fűszernövények | AD161: Aromás-, gyógy- és fűszernövények | AE161: AGF48 | AF161: Jázminpakóca (stevia)
A162: DBU01 | B162: Dohány- Burley | C162: Nem | D162: Nem | E162: Nem | F162: 0.1 | G162: 9.94 | H162: 10.04 | L162: 0.1 | M162: 9.84 | N162: 0.1 | O162: 10.04 | AB162: 9 | AC162: Egyéb növények | AD162: Dohány | AE162: DBU01 | AF162: Dohány- Burley
A163: DVI02 | B163: Dohány- Virginia | C163: Nem | D163: Nem | E163: Nem | F163: 0.1 | G163: 9.94 | H163: 10.04 | L163: 0.1 | M163: 9.84 | N163: 0.1 | O163: 10.04 | AB163: 9 | AC163: Egyéb növények | AD163: Dohány | AE163: DVI02 | AF163: Dohány- Virginia
A164: EFU01 | B164: Energiafű | C164: Nem | D164: Igen | E164: Igen | F164: 0.1 | G164: 2.98 | H164: 3.08 | I164: 2.98 | J164: 2.98 | L164: 0.1 | M164: 2.88 | N164: 0.1 | O164: 3.08 | Q164: 2.98 | R164: 2.88 | S164: 0.1 | T164: =S164+R164 -> 2.98 | AB164: 9 | AC164: Egyéb növények | AD164: Energiafű | AE164: EFU01 | AF164: Energiafű
A165: EGY01 | B165: Egyéb szántóföldi termelt növény | C165: Nem | D165: Nem | E165: Nem | F165: 0.1 | G165: 2.98 | H165: 3.08 | L165: 0.1 | M165: 2.88 | N165: 0.1 | O165: 3.08 | AB165: 9 | AC165: Egyéb növények | AD165: Egyéb termelt növény | AE165: EGY01 | AF165: Egyéb szántóföldi termelt növény
A166: FOR01 | B166: Lucerna | C166: Nem | D166: Nem | E166: Nem | F166: 0.1 | G166: 0.5 | H166: 0.6 | L166: 0.1 | M166: 0.4 | N166: 0.1 | O166: 0.6 | AB166: 9 | AC166: Egyéb növények | AD166: Lucerna | AE166: FOR01 | AF166: Lucerna
A167: FOR02 | B167: Lucerna erjesztett takarmány | C167: Nem | D167: Nem | E167: Nem | F167: 0.1 | G167: 0.5 | H167: 0.6 | L167: 0.1 | M167: 0.4 | N167: 0.1 | O167: 0.6 | AB167: 9 | AC167: Egyéb növények | AD167: Lucerna | AE167: FOR02 | AF167: Lucerna erjesztett takarmány
A168: FOR03 | B168: Lucerna zöldtakarmány | C168: Nem | D168: Nem | E168: Nem | F168: 0.1 | G168: 0.5 | H168: 0.6 | L168: 0.1 | M168: 0.4 | N168: 0.1 | O168: 0.6 | AB168: 9 | AC168: Egyéb növények | AD168: Lucerna | AE168: FOR03 | AF168: Lucerna zöldtakarmány
A169: FOR04 | B169: Komlós lucerna | C169: Nem | D169: Nem | E169: Nem | F169: 0.1 | G169: 2.98 | H169: 3.08 | L169: 0.1 | M169: 2.88 | N169: 0.1 | O169: 3.08 | AB169: 9 | AC169: Egyéb növények | AD169: Lucerna | AE169: FOR04 | AF169: Komlós lucerna
A170: FOR05 | B170: Sárkerep lucerna | C170: Nem | D170: Nem | E170: Nem | F170: 0.1 | G170: 0.5 | H170: 0.6 | L170: 0.1 | M170: 0.4 | N170: 0.1 | O170: 0.6 | AB170: 9 | AC170: Egyéb növények | AD170: Lucerna | AE170: FOR05 | AF170: Sárkerep lucerna
A171: FOR06 | B171: Tarkavirágú lucerna | C171: Nem | D171: Nem | E171: Nem | F171: 0.1 | G171: 0.5 | H171: 0.6 | L171: 0.1 | M171: 0.4 | N171: 0.1 | O171: 0.6 | AB171: 9 | AC171: Egyéb növények | AD171: Lucerna | AE171: FOR06 | AF171: Tarkavirágú lucerna
A172: FOR09 | B172: Vöröshere | C172: Nem | D172: Nem | E172: Nem | F172: 0.1 | G172: 0.5 | H172: 0.6 | L172: 0.1 | M172: 0.4 | N172: 0.1 | O172: 0.6 | AB172: 9 | AC172: Egyéb növények | AD172: Here | AE172: FOR09 | AF172: Vöröshere
A173: FOR10 | B173: Bíborhere | C173: Nem | D173: Nem | E173: Nem | F173: 0.1 | G173: 0.5 | H173: 0.6 | L173: 0.1 | M173: 0.4 | N173: 0.1 | O173: 0.6 | AB173: 9 | AC173: Egyéb növények | AD173: Here | AE173: FOR10 | AF173: Bíborhere
A174: FOR11 | B174: Fehérhere | C174: Nem | D174: Nem | E174: Nem | F174: 0.1 | G174: 0.5 | H174: 0.6 | L174: 0.1 | M174: 0.4 | N174: 0.1 | O174: 0.6 | AB174: 9 | AC174: Egyéb növények | AD174: Here | AE174: FOR11 | AF174: Fehérhere
A175: FOR12 | B175: Korcshere (svédhere) | C175: Nem | D175: Nem | E175: Nem | F175: 0.1 | G175: 0.5 | H175: 0.6 | L175: 0.1 | M175: 0.4 | N175: 0.1 | O175: 0.6 | AB175: 9 | AC175: Egyéb növények | AD175: Here | AE175: FOR12 | AF175: Korcshere (svédhere)
A176: FOR13 | B176: Perzsahere (fonákhere) | C176: Nem | D176: Nem | E176: Nem | F176: 0.1 | G176: 0.5 | H176: 0.6 | L176: 0.1 | M176: 0.4 | N176: 0.1 | O176: 0.6 | AB176: 9 | AC176: Egyéb növények | AD176: Here | AE176: FOR13 | AF176: Perzsahere (fonákhere)
A177: FOR14 | B177: Alexandriai here | C177: Nem | D177: Nem | E177: Nem | F177: 0.1 | G177: 0.5 | H177: 0.6 | L177: 0.1 | M177: 0.4 | N177: 0.1 | O177: 0.6 | AB177: 9 | AC177: Egyéb növények | AD177: Here | AE177: FOR14 | AF177: Alexandriai here
A178: FOR15 | B178: Lódi lóhere | C178: Nem | D178: Nem | E178: Nem | F178: 0.1 | G178: 1.99 | H178: 2.09 | L178: 0.1 | M178: 1.89 | N178: 0.1 | O178: 2.09 | AB178: 9 | AC178: Egyéb növények | AD178: Here | AE178: FOR15 | AF178: Lódi lóhere
A179: FOR23 | B179: Sárgavirágú somkóró (orvosi somkóró) | C179: Nem | D179: Nem | E179: Nem | F179: 0.1 | G179: 0.99 | H179: 1.09 | L179: 0.1 | M179: 0.89 | N179: 0.1 | O179: 1.09 | AB179: 9 | AC179: Egyéb növények | AD179: Somkóró | AE179: FOR23 | AF179: Sárgavirágú somkóró (orvosi somkóró)
A180: FOR24 | B180: Fehérvirágú somkóró | C180: Nem | D180: Nem | E180: Nem | F180: 0.1 | G180: 0.5 | H180: 0.6 | L180: 0.1 | M180: 0.4 | N180: 0.1 | O180: 0.6 | AB180: 9 | AC180: Egyéb növények | AD180: Somkóró | AE180: FOR24 | AF180: Fehérvirágú somkóró
A181: FOR25 | B181: Takarmánybaltacim | C181: Nem | D181: Nem | E181: Nem | F181: 0.1 | G181: 0.5 | H181: 0.6 | L181: 0.1 | M181: 0.4 | N181: 0.1 | O181: 0.6 | AB181: 9 | AC181: Egyéb növények | AD181: Takarmánybaltacim | AE181: FOR25 | AF181: Takarmánybaltacim
A182: FOR27 | B182: Szarvaskerep | C182: Nem | D182: Nem | E182: Nem | F182: 0.1 | G182: 0.5 | H182: 0.6 | L182: 0.1 | M182: 0.4 | N182: 0.1 | O182: 0.6 | AB182: 9 | AC182: Egyéb növények | AD182: Szarvaskerep | AE182: FOR27 | AF182: Szarvaskerep
A183: FOR28 | B183: Nyúlszapuka | C183: Nem | D183: Nem | E183: Nem | F183: 0.1 | G183: 0.99 | H183: 1.09 | L183: 0.1 | M183: 0.89 | N183: 0.1 | O183: 1.09 | AB183: 9 | AC183: Egyéb növények | AD183: Nyúlszapuka | AE183: FOR28 | AF183: Nyúlszapuka
A184: FOR29 | B184: Szeradella | C184: Nem | D184: Nem | E184: Nem | F184: 0.1 | G184: 0.99 | H184: 1.09 | L184: 0.1 | M184: 0.89 | N184: 0.1 | O184: 1.09 | AB184: 9 | AC184: Egyéb növények | AD184: Szeradella | AE184: FOR29 | AF184: Szeradella
A185: FOR30 | B185: Koronás baltavirág | C185: Nem | D185: Nem | E185: Nem | F185: 0.1 | G185: 0.99 | H185: 1.09 | L185: 0.1 | M185: 0.89 | N185: 0.1 | O185: 1.09 | AB185: 9 | AC185: Egyéb növények | AD185: Koronás baltavirág (vetőmag) | AE185: FOR30 | AF185: Koronás baltavirág
A186: FOR32 | B186: Réparepce | C186: Nem | D186: Nem | E186: Nem | F186: 0.1 | G186: 1.99 | H186: 2.09 | L186: 0.1 | M186: 1.89 | N186: 0.1 | O186: 2.09 | AB186: 9 | AC186: Egyéb növények | AD186: Réparepce | AE186: FOR32 | AF186: Réparepce
A187: FOR33 | B187: Tifon | C187: Nem | D187: Nem | E187: Nem | F187: 0.1 | G187: 0.99 | H187: 1.09 | L187: 0.1 | M187: 0.89 | N187: 0.1 | O187: 1.09 | AB187: 9 | AC187: Egyéb növények | AD187: Tifon | AE187: FOR33 | AF187: Tifon
A188: FOR34 | B188: Tarlórépa | C188: Nem | D188: Nem | E188: Nem | F188: 0.1 | G188: 0.99 | H188: 1.09 | L188: 0.1 | M188: 0.89 | N188: 0.1 | O188: 1.09 | AB188: 9 | AC188: Egyéb növények | AD188: Tarlórépa | AE188: FOR34 | AF188: Tarlórépa
A189: FOR35 | B189: Takarmányrépa | C189: Nem | D189: Nem | E189: Nem | F189: 0.1 | G189: 0.99 | H189: 1.09 | L189: 0.1 | M189: 0.89 | N189: 0.1 | O189: 1.09 | AB189: 9 | AC189: Egyéb növények | AD189: Takarmányrépa | AE189: FOR35 | AF189: Takarmányrépa
A190: FOR36 | B190: Csicsóka | C190: Nem | D190: Nem | E190: Nem | F190: 0.1 | G190: 2.98 | H190: 3.08 | L190: 0.1 | M190: 2.88 | N190: 0.1 | O190: 3.08 | AB190: 9 | AC190: Egyéb növények | AD190: Csicsóka | AE190: FOR36 | AF190: Csicsóka
A191: FOR37 | B191: Murokrépa | C191: Nem | D191: =IF(I191<>0,"Igen","Nem") -> Nem | E191: =IF(J191<>0,"Igen","Nem") -> Nem | F191: 0.1 | G191: 0.99 | H191: =F191+G191 -> 1.09 | L191: 0.1 | M191: 0.89 | N191: 0.1 | O191: 1.09 | AB191: 9 | AC191: Egyéb növények | AD191: Murokrépa | AE191: FOR37 | AF191: Murokrépa
A192: FOR38 | B192: Tarka koronafürt | C192: Nem | D192: Nem | E192: Nem | F192: 0.1 | G192: 0.5 | H192: 0.6 | L192: 0.1 | M192: 0.4 | N192: 0.1 | O192: =L192+M192+N192 -> 0.6 | AB192: 9 | AC192: Egyéb növények | AD192: Tarka koronafürt | AE192: FOR38 | AF192: Tarka koronafürt
A193: FOR39 | B193: Görög széna | C193: Nem | D193: Nem | E193: Nem | F193: 0.1 | G193: 2.98 | H193: 3.08 | L193: 0.1 | M193: 2.88 | N193: 0.1 | O193: 3.08 | AB193: 9 | AC193: Egyéb növények | AD193: Görög széna | AE193: FOR39 | AF193: Görög széna
A194: FOR40 | B194: Keleti kecskeruta | C194: Nem | D194: Nem | E194: Nem | F194: 0.1 | G194: 0.99 | H194: 1.09 | L194: 0.1 | M194: 0.89 | N194: 0.1 | O194: 1.09 | AB194: 9 | AC194: Egyéb növények | AD194: Keleti kecskeruta | AE194: FOR40 | AF194: Keleti kecskeruta
A195: FOR41 | B195: Mézontófű (Facélia) | C195: Nem | D195: Nem | E195: Nem | F195: 0.1 | G195: 0.99 | H195: 1.09 | L195: 0.1 | M195: 0.89 | N195: 0.1 | O195: 1.09 | AB195: 9 | AC195: Egyéb növények | AD195: Mézontófű (Facélia) | AE195: FOR41 | AF195: Mézontófű (Facélia)
A196: FOR56 | B196: Füves lucerna | C196: Nem | D196: Nem | E196: Nem | F196: 0.1 | G196: 0.5 | H196: 0.6 | L196: 0.1 | M196: 0.4 | N196: 0.1 | O196: 0.6 | AB196: 9 | AC196: Egyéb növények | AD196: Ideiglenes gyep | AE196: FOR56 | AF196: Füves lucerna
A197: FOR57 | B197: Füves here | C197: Nem | D197: Nem | E197: Nem | F197: 0.1 | G197: 0.5 | H197: 0.6 | L197: 0.1 | M197: 0.4 | N197: 0.1 | O197: 0.6 | AB197: 9 | AC197: Egyéb növények | AD197: Ideiglenes gyep | AE197: FOR57 | AF197: Füves here
A198: FOR58 | B198: Takarmánymályva | C198: Nem | D198: Nem | E198: Nem | F198: 0.1 | G198: 0.99 | H198: 1.09 | L198: 0.1 | M198: 0.89 | N198: 0.1 | O198: 1.09 | AB198: 9 | AC198: Egyéb növények | AD198: Takarmánymályva | AE198: =A198 -> FOR58 | AF198: =B198 -> Takarmánymályva
A199: FOR59 | B199: Szilfium | C199: Nem | D199: Nem | E199: Nem | F199: 0.1 | G199: 0.99 | H199: 1.09 | L199: 0.1 | M199: 0.89 | N199: 0.1 | O199: 1.09 | AB199: 9 | AC199: Egyéb növények | AD199: Szilfium | AE199: FOR59 | AF199: Szilfium
A200: FOR60 | B200: Lósóska | C200: Nem | D200: Nem | E200: Nem | F200: 0.1 | G200: 2.98 | H200: 3.08 | L200: 0.1 | M200: 2.88 | N200: 0.1 | O200: 3.08 | AB200: 9 | AC200: Egyéb növények | AD200: Lósóska | AE200: FOR60 | AF200: Lósóska
A201: FRU11 | B201: Szeder | C201: Nem | D201: Nem | E201: Nem | F201: 0.1 | G201: 9.94 | H201: 10.04 | L201: 0.1 | M201: 9.84 | N201: 0.1 | O201: 10.04 | AB201: 3 | AC201: Gyömölcsösök - gyümölcsök | AD201: Szeder | AE201: FRU11 | AF201: Szeder
... 111 more rows

Sheet Segéd (hidden)
A1: Növény csoportok | C1: Alap_szántóföldi_növények | E1: Egyéb_növények | G1: Fűszernövények | I1: Gyümölcsösök_gyümölcsök | K1: Zöltségek
A2: Alap_szántóföldi_növények | C2: Oszlop1 | E2: Oszlop1 | G2: Oszlop1 | I2: Oszlop1 | K2: Oszlop1
A3: Egyéb_növények | C3: Kukorica | E3: Alexandriai here | G3: Abesszin (etiópiai) mustár | I3: Áfonya | K3: Articsóka
A4: Fűszernövények | C4: Napraforgó | E4: Angol perje | G4: Angyalgyökér | I4: Alma | K4: Batáta (édesburgonya)
A5: Gyümölcsösök_gyümölcsök | C5: Őszi alakor búza | E5: Bíborhere | G5: Ánizs | I5: Berkenye | K5: Bimbóskel
A6: Zöltségek | C6: Őszi árpa | E6: Burgonya | G6: Ánizsizsóp | I6: Birs | K6: Borsmustár (rukkola)
A7: Nincs | C7: Őszi búza | E7: Cérnatippan | G7: Ánizsmenta | I7: Csemegeszőlő ültetvény | K7: Brokkoli
C8: Őszi durumbúza | E8: Cikória | G8: Anyarozs | I8: Cseresznye | K8: Cékla
C9: Őszi káposztarepce | E9: Cukorborsó | G9: Bazsalikom | I9: Csipkebogyó | K9: Cukkini
C10: Őszi novum búza | E10: Cukorcirok | G10: Bíbor kasvirág (Echinacea) | I10: Dió | K10: Csemegehagyma
C11: Őszi tönke búza | E11: Cukorrépa | G11: Borágó | I11: Egyéb bodza | K11: Csillagtök/patiszon
C12: Őszi tönköly búza | E12: Csemegekukorica | G12: Borsikafű | I12: Egyéb borszőlő szőlőültetvény | K12: Édeskömény
C13: Őszi tritikálé | E13: Csenkeszperje | G13: Cickafark | I13: Egyéb ültetvény | K13: Egyéb zöldség
C14: Rozs | E14: Csicseriborsó | G14: Citromfű | I14: Fehér eperfa | K14: Endívia
C15: Tavaszi alakor búza | E15: Csicsóka | G15: Digitalis | I15: Fekete berkenye | K15: Fejes káposzta
C16: Tavaszi árpa | E16: Csomós ebír | G16: Fűszerkömény | I16: Fekete bodza | K16: Fejessaláta
C17: Tavaszi búza | E17: Dohány- Burley | G17: Gyermekláncfű | I17: Fekete eperfa | K17: Feketegyökér
C18: Tavaszi durumbúza | E18: Dohány- Virginia | G18: Izsóp | I18: Földieper (szamóca) | K18: Főzőtök
C19: Tavaszi káposztarepce | E19: Ebtippan | G19: Jázmin | I19: Füge | K19: Fűszerpaprika
C20: Tavaszi novum búza | E20: Egyéb szántóföldi termelt növény | G20: Jázminpakóca (stevia) | I20: Görög dinnye | K20: Galambbegysaláta
C21: Tavaszi tönke búza | E21: Energiafű | G21: Kamilla | I21: Hagyományos gyümölcsös Áfonya | K21: Káposztatök
C22: Tavaszi tönköly búza | E22: Évelő rozs | G22: Kapor | I22: Hagyományos gyümölcsös alma | K22: Karalábé
C23: Tavaszi tritikálé | E23: Fehér mustár | G23: Kerti kakukkfű | I23: Hagyományos gyümölcsös Berkenye | K23: Karfiol
C24: Nincs | E24: Fehér tippan | G24: Kerti ruta | I24: Hagyományos gyümölcsös birs | K24: Kelkáposzta
E25: Fehérhere | G25: Koriander | I25: Hagyományos gyümölcsös bodza | K25: Kínai kel
E26: Fehérvirágú édes csillagfürt | G26: Körömvirág | I26: Hagyományos gyümölcsös cseresznye | K26: Lilahagyma
E27: Fehérvirágú édes csillagfürt (takarmány célra) | G27: Lestyán | I27: Hagyományos gyümölcsös dió | K27: Metélőhagyma
E28: Fehérvirágú édes csillagfürt (zöldtrágyázásra) | G28: Levendula | I28: Hagyományos gyümölcsös Fehér eperfa | K28: Mezei csibehúr
E29: Fehérvirágú somkóró | G29: Macskagyökérfű | I29: Hagyományos gyümölcsös Fekete berkenye | K29: Olajtök
E30: Fekete mustár | G30: Majoranna | I30: Hagyományos gyümölcsös Fekete eperfa | K30: Őszi fokhagyma
E31: Fénymag | G31: Máriatövis | I31: Hagyományos gyümölcsös homoktövis | K31: Őszi vöröshagyma
E32: Földimogyoró | G32: Menta | I32: Hagyományos gyümölcsös kajszibarack (sárgabarack) | K32: Padlizsán (Tojásgyümölcs)
E33: Francia perje | G33: Meténg | I33: Hagyományos gyümölcsös körte | K33: Paprika
E34: Futóbab | G34: Oregánó (szurokfű) | I34: Hagyományos gyümölcsös mandula | K34: Paradicsom
E35: Füves here | G35: Orvosi zsálya | I35: Hagyományos gyümölcsös meggy | K35: Pasztinák
E36: Füves lucerna | G36: Rozmaring | I36: Hagyományos gyümölcsös mogyoró | K36: Petrezselyem gyökér (fehérrépa)
E37: Gomborka | G37: Sáfrány | I37: Hagyományos gyümölcsös naspolya | K37: Petrezselyem levél
E38: Görög széna | G38: Sáfrányos szeklice | I38: Hagyományos gyümölcsös nektarin | K38: Póréhagyma
E39: Gumós komócsin | G39: Szöszös ökörfarkkóró | I39: Hagyományos gyümölcsös őszibarack | K39: Rebarbara
E40: Hibrid kukorica | G40: Tárkony | I40: Hagyományos gyümölcsös szelídgesztenye | K40: Sárgarépa
E41: Hibrid napraforgó | G41: Tárnics | I41: Hagyományos gyümölcsös szilva | K41: Sóska
E42: Hibrid perje | G42: Utifű (Psyllium) | I42: Hagyományos gyümölcsös vegyes | K42: Spanyol Articsóka
E43: Homoki bab | G43: Nincs | I43: Homoktövis | K43: Spárga
E44: Indiai köles | I44: Kajszibarack (sárgabarack) | K44: Spárgatök
E45: Indiánrizs | I45: Kivi | K45: Spenót
E46: Juhcsenkesz | I46: Körte | K46: Sütőtök
E47: Kékvirágú édes csillagfürt | I47: Málna | K47: Takarmánykáposzta
E48: Kékvirágú édes csillagfürt (takarmány célra) | I48: Mandula | K48: Tavaszi fokhagyma
E49: Kékvirágú édes csillagfürt (zöldtrágyázásra) | I49: Meggy | K49: Tavaszi vöröshagyma
E50: Keleti kecskeruta | I50: Minőségi borszőlő ültetvény | K50: Torma
E51: Kender | I51: Mogyoró | K51: Uborka
E52: Keverék kultúra | I52: Naspolya | K52: Újzélandi spenót
E53: Komló | I53: Nektarin | K53: Vöröskáposzta
E54: Komlós lucerna | I54: Őszibarack | K54: Zeller
E55: Korcshere (svédhere) | I55: Piszke | K55: Zsázsa
E56: Koronás baltavirág | I56: Ribiszke | K56: Nincs
E57: Lencse | I57: Sárgadinnye
E58: Ligeti perje | I58: Szeder
E59: Lóbab (Disznóbab) | I59: Szelídgesztenye
E60: Lódi lóhere | I60: Szilva
E61: Lósóska | I61: Tökre oltott görög dinnye
E62: Lucerna | I62: Tüske nélküli szeder
E63: Lucerna erjesztett takarmány | I63: Vegyes gyümölcsös
E64: Lucerna zöldtakarmány | I64: Yosta (rikö)
E65: Magyar rozsnok | I65: Nincs
E66: Mák
E67: Mezei borsó
E68: Mézontófű (Facélia)
E69: Mocsári perje
E70: Mohar
E71: Murokrépa
E72: Nádképű csenkesz
E73: Négermag
E74: Nyúlszapuka
E75: Olajlen
E76: Olajretek
E77: Olasz perje (szálkás perje)
E78: Óriás tippan
E79: Őszi takarmányborsó
E80: Őszi zab
E81: Őszi zöldborsó
E82: Pannonbükköny
E83: Pattogatni való kukorica
E84: Perzsahere (fonákhere)
E85: Pohánka (Hajdina)
E86: Réparepce
E87: Retek
E88: Réti csenkesz
E89: Réti komócsin
E90: Réti perje
E91: Ricinus
E92: Rizs
E93: Rostlen
E94: Sárgavirágú édes csillagfürt
E95: Sárgavirágú édes csillagfürt (takarmány célra)
E96: Sárgavirágú édes csillagfürt (zöldtrágyázásra)
E97: Sárgavirágú somkóró (orvosi somkóró)
E98: Sárkerep lucerna
E99: Seprűcirok
E100: Silócirok
E101: Silókukorica
E102: Sovány perje
E103: Szárazbab
E104: Szárazborsó (Sárgaborsó)
E105: Szarvaskerep
E106: Szegletes lednek
E107: Szemescirok
E108: Szeradella
E109: Szezámmag
E110: Sziki kender
E111: Szilfium
E112: Szójabab
E113: Szöszösbükköny
E114: Szudáni cirokfű
E115: Takarmánybaltacim
E116: Takarmánybükköny (Tavaszi bükköny)
E117: Takarmánymályva
E118: Takarmányrépa
E119: Takarmányretek
E120: Tarka koronafürt
E121: Tarkavirágú lucerna
E122: Tarlórépa
E123: Tavaszi takarmányborsó
E124: Tavaszi zab
E125: Tavaszi zöldborsó
E126: Termesztett köles
E127: Tifon
E128: Vadrepce
E129: Veresnadrág csenkesz
E130: Vörös csenkesz
E131: Vöröshere
E132: Zöld Pántlikafű
E133: Zöldbab
E134: Nincs
